{"text_format":"1","workbook":"xlsx","n_sheets":3,"sheets":["Liaisons","BDD","Inter"],"not_rendered":{"charts":0,"images":0,"macros":1,"external_links":0,"defined_names":4,"comments":0,"pivot_tables":0},"unopened":[],"bounds":{"document_bytes":16777216,"sheet_cells":100000,"rows_first":2000,"rows_last":500,"rows_between":2000,"halvings":0,"cell_chars":16384,"cell_head_chars":4096},"cells_cut":0,"cells_raw":0,"read":"whole","date_system":"1900"}

{"sheet":"Liaisons","index":0,"n_rows":405,"n_cols":12,"rows_kept":405,"cut":false,"hidden":false,"merged":[[0,2,0,3],[0,4,0,5]]}
[null,"Bonbache.fr","Bonbache.fr/Excel",null,"Bonbache.fr/ExcelVBA",null,"Livres Excel",null,null,null,{"$f":"_xlfn._xlws.SORT(_xlfn.UNIQUE(dep))","v":"06-Alpes Maritimes"},{"$f":"_xlfn._xlws.SORT(_xlfn.UNIQUE(villes))","v":"Agay"}]
[null,null,null,null,null,null,null,null,null,null,"07-Ardèche","Aigues mortes"]
[null,"Raison sociale","Activité","Département","Ville",null,"Département",null,null,null,"13-Bouches du Rhone","Aix en provence"]
[null,null,null,null,null,null,null,null,null,null,"17-Charente Maritime","Aizac"]
[null,null,null,null,null,null,null,null,null,null,"18-Cher","Ajoux"]
[null,null,null,null,null,null,"Ville",null,null,null,"26-Drome","Alba la romaine"]
[null,null,null,null,null,null,null,null,null,null,"30-Gard","Albon"]
[null,null,null,null,null,null,null,null,null,null,"31-Haute Garonne","Alboussiere"]
[null,null,null,null,null,null,"Activité",null,null,null,"33-Gironde","Ales"]
[null,null,null,null,null,null,null,null,null,null,"38-Isère","Alissas"]
[null,null,null,null,null,null,null,null,null,null,"42-Loire","Alixan"]
[null,null,null,null,null,null,null,null,null,null,"55-Meuse","Allevard"]
[null,null,null,null,null,null,null,null,null,null,"69-Rhone","Alpe d'huez"]
[null,null,null,null,null,null,null,null,null,null,"71-Saone et Loire","Andrezieux boutheon"]
[null,null,null,null,null,null,null,null,null,null,"73-Savoie","Annonay"]
[null,null,null,null,null,null,null,null,null,null,"75-Paris","Antibes"]
[null,null,null,null,null,null,null,null,null,null,"83-Var","Antibes juan les pins"]
[null,null,null,null,null,null,null,null,null,null,"84-Vaucluse","Antraigues sur volane"]
[null,null,null,null,null,null,null,null,null,null,"85-Vendée","Ardoix"]
[null,null,null,null,null,null,null,null,null,null,"87-Haute Vienne","Aubagne"]
[null,null,null,null,null,null,null,null,null,null,null,"Aubenas"]
[null,null,null,null,null,null,null,null,null,null,null,"Aups"]
[null,null,null,null,null,null,null,null,null,null,null,"Autrans"]
[null,null,null,null,null,null,null,null,null,null,null,"Avenas"]
[null,null,null,null,null,null,null,null,null,null,null,"Avignon"]
[null,null,null,null,null,null,null,null,null,null,null,"Baix"]
[null,null,null,null,null,null,null,null,null,null,null,"Balazuc"]
[null,null,null,null,null,null,null,null,null,null,null,"Bandol"]
[null,null,null,null,null,null,null,null,null,null,null,"Banne"]
[null,null,null,null,null,null,null,null,null,null,null,"Beaucaire"]
[null,null,null,null,null,null,null,null,null,null,null,"Beauchastel"]
[null,null,null,null,null,null,null,null,null,null,null,"Beaulieu"]
[null,null,null,null,null,null,null,null,null,null,null,"Beauregard baret"]
[null,null,null,null,null,null,null,null,null,null,null,"Beausemblant"]
[null,null,null,null,null,null,null,null,null,null,null,"Beauvoir en royans"]
[null,null,null,null,null,null,null,null,null,null,null,"Belmont d'azergues"]
[null,null,null,null,null,null,null,null,null,null,null,"Berrias et casteljau"]
[null,null,null,null,null,null,null,null,null,null,null,"Besse"]
[null,null,null,null,null,null,null,null,null,null,null,"Bidon"]
[null,null,null,null,null,null,null,null,null,null,null,"Boffres"]
[null,null,null,null,null,null,null,null,null,null,null,"Bollene"]
[null,null,null,null,null,null,null,null,null,null,null,"Bonnieux"]
[null,null,null,null,null,null,null,null,null,null,null,"Boree"]
[null,null,null,null,null,null,null,null,null,null,null,"Bormes les mimosas"]
[null,null,null,null,null,null,null,null,null,null,null,"Bouc bel air"]
[null,null,null,null,null,null,null,null,null,null,null,"Bouchet"]
[null,null,null,null,null,null,null,null,null,null,null,"Boucieu le roi"]
[null,null,null,null,null,null,null,null,null,null,null,"Bouillargues"]
[null,null,null,null,null,null,null,null,null,null,null,"Bourg de peage"]
[null,null,null,null,null,null,null,null,null,null,null,"Bourg les valence"]
[null,null,null,null,null,null,null,null,null,null,null,"Bourg saint andeol"]
[null,null,null,null,null,null,null,null,null,null,null,"Bourgoin jallieu"]
[null,null,null,null,null,null,null,null,null,null,null,"Bresson"]
[null,null,null,null,null,null,null,null,null,null,null,"Brie et angonnes"]
[null,null,null,null,null,null,null,null,null,null,null,"Brignais"]
[null,null,null,null,null,null,null,null,null,null,null,"Brignoles"]
[null,null,null,null,null,null,null,null,null,null,null,"Buis les baronnies"]
[null,null,null,null,null,null,null,null,null,null,null,"Bully"]
[null,null,null,null,null,null,null,null,null,null,null,"Callas"]
[null,null,null,null,null,null,null,null,null,null,null,"Callian"]
[null,null,null,null,null,null,null,null,null,null,null,"Caluire"]
[null,null,null,null,null,null,null,null,null,null,null,"Camps la source"]
[null,null,null,null,null,null,null,null,null,null,null,"Cannes"]
[null,null,null,null,null,null,null,null,null,null,null,"Cannes la bocca"]
[null,null,null,null,null,null,null,null,null,null,null,"Carpentras"]
[null,null,null,null,null,null,null,null,null,null,null,"Carqueiranne"]
[null,null,null,null,null,null,null,null,null,null,null,"Cavaillon"]
[null,null,null,null,null,null,null,null,null,null,null,"Cavalaire sur mer"]
[null,null,null,null,null,null,null,null,null,null,null,"Cellieu"]
[null,null,null,null,null,null,null,null,null,null,null,"Chabeuil"]
[null,null,null,null,null,null,null,null,null,null,null,"Chalencon"]
[null,null,null,null,null,null,null,null,null,null,null,"Champagne"]
[null,null,null,null,null,null,null,null,null,null,null,"Champagne au mont d'or"]
[null,null,null,null,null,null,null,null,null,null,null,"Champier"]
[null,null,null,null,null,null,null,null,null,null,null,"Chamrousse"]
[null,null,null,null,null,null,null,null,null,null,null,"Chanas"]
[null,null,null,null,null,null,null,null,null,null,null,"Chandolas"]
[null,null,null,null,null,null,null,null,null,null,null,"Charmes sur rhone"]
[null,null,null,null,null,null,null,null,null,null,null,"Chasse sur rhone"]
[null,null,null,null,null,null,null,null,null,null,null,"Chassiers"]
[null,null,null,null,null,null,null,null,null,null,null,"Chateaudouble"]
[null,null,null,null,null,null,null,null,null,null,null,"Chateauneuf du pape"]
[null,null,null,null,null,null,null,null,null,null,null,"Chateauneuf du rhone"]
[null,null,null,null,null,null,null,null,null,null,null,"Chateauneuf sur isere"]
[null,null,null,null,null,null,null,null,null,null,null,"Chatte"]
[null,null,null,null,null,null,null,null,null,null,null,"Chomerac"]
[null,null,null,null,null,null,null,null,null,null,null,"Choranche"]
[null,null,null,null,null,null,null,null,null,null,null,"Cliousclat"]
[null,null,null,null,null,null,null,null,null,null,null,"Cogolin"]
[null,null,null,null,null,null,null,null,null,null,null,"Colombier le vieux"]
[null,null,null,null,null,null,null,null,null,null,null,"Comps"]
[null,null,null,null,null,null,null,null,null,null,null,"Condrieu"]
[null,null,null,null,null,null,null,null,null,null,null,"Corbas"]
[null,null,null,null,null,null,null,null,null,null,null,"Cornas"]
[null,null,null,null,null,null,null,null,null,null,null,"Courzieu"]
[null,null,null,null,null,null,null,null,null,null,null,"Coux"]
[null,null,null,null,null,null,null,null,null,null,null,"Crest"]
[null,null,null,null,null,null,null,null,null,null,null,"Crolles"]
[null,null,null,null,null,null,null,null,null,null,null,"Crupies"]
[null,null,null,null,null,null,null,null,null,null,null,"Cublize"]
[null,null,null,null,null,null,null,null,null,null,null,"Cuges les pins"]
[null,null,null,null,null,null,null,null,null,null,null,"Dardilly"]
[null,null,null,null,null,null,null,null,null,null,null,"Dieulefit"]
[null,null,null,null,null,null,null,null,null,null,null,"Donzere"]
[null,null,null,null,null,null,null,null,null,null,null,"Draguignan"]
[null,null,null,null,null,null,null,null,null,null,null,"Drumettaz clarafond"]
[null,null,null,null,null,null,null,null,null,null,null,"Echirolles"]
[null,null,null,null,null,null,null,null,null,null,null,"Ecully"]
[null,null,null,null,null,null,null,null,null,null,null,"Epinouze"]
[null,null,null,null,null,null,null,null,null,null,null,"Eybens"]
[null,null,null,null,null,null,null,null,null,null,null,"Fayence"]
[null,null,null,null,null,null,null,null,null,null,null,"Felines"]
[null,null,null,null,null,null,null,null,null,null,null,"Flassans sur issole"]
[null,null,null,null,null,null,null,null,null,null,null,"Flayosc"]
[null,null,null,null,null,null,null,null,null,null,null,"Fontaine"]
[null,null,null,null,null,null,null,null,null,null,null,"Fontaine de vaucluse"]
[null,null,null,null,null,null,null,null,null,null,null,"Fontanil cornillon"]
[null,null,null,null,null,null,null,null,null,null,null,"Frejus"]
[null,null,null,null,null,null,null,null,null,null,null,"Gardanne"]
[null,null,null,null,null,null,null,null,null,null,null,"Gassin"]
[null,null,null,null,null,null,null,null,null,null,null,"Gemenos"]
[null,null,null,null,null,null,null,null,null,null,null,"Genas"]
[null,null,null,null,null,null,null,null,null,null,null,"Gervans"]
[null,null,null,null,null,null,null,null,null,null,null,"Gieres"]
[null,null,null,null,null,null,null,null,null,null,null,"Givors"]
[null,null,null,null,null,null,null,null,null,null,null,"Gonfaron"]
[null,null,null,null,null,null,null,null,null,null,null,"Gordes"]
[null,null,null,null,null,null,null,null,null,null,null,"Grans"]
[null,null,null,null,null,null,null,null,null,null,null,"Grenay"]
[null,null,null,null,null,null,null,null,null,null,null,"Grenoble"]
[null,null,null,null,null,null,null,null,null,null,null,"Grignan"]
[null,null,null,null,null,null,null,null,null,null,null,"Grimaud"]
[null,null,null,null,null,null,null,null,null,null,null,"Grospierres"]
[null,null,null,null,null,null,null,null,null,null,null,"Hostun"]
[null,null,null,null,null,null,null,null,null,null,null,"Hyeres les palmiers"]
[null,null,null,null,null,null,null,null,null,null,null,"Irigny"]
[null,null,null,null,null,null,null,null,null,null,null,"Izeron"]
[null,null,null,null,null,null,null,null,null,null,null,"Joyeuse"]
[null,null,null,null,null,null,null,null,null,null,null,"La balme les grottes"]
[null,null,null,null,null,null,null,null,null,null,null,"La baume de transit"]
[null,null,null,null,null,null,null,null,null,null,null,"La begude de mazenc"]
[null,null,null,null,null,null,null,null,null,null,null,"La cadiere d'azur"]
[null,null,null,null,null,null,null,null,null,null,null,"La calmette"]
[null,null,null,null,null,null,null,null,null,null,null,"La celle"]
[null,null,null,null,null,null,null,null,null,null,null,"La ciotat"]
[null,null,null,null,null,null,null,null,null,null,null,"La crau"]
[null,null,null,null,null,null,null,null,null,null,null,"La croix valmer"]
[null,null,null,null,null,null,null,null,null,null,null,"La garde"]
[null,null,null,null,null,null,null,null,null,null,null,"La garde adhemar"]
[null,null,null,null,null,null,null,null,null,null,null,"La garde freinet"]
[null,null,null,null,null,null,null,null,null,null,null,"La martre"]
[null,null,null,null,null,null,null,null,null,null,null,"La motte"]
[null,null,null,null,null,null,null,null,null,null,null,"La motte de galaure"]
[null,null,null,null,null,null,null,null,null,null,null,"La mulatiere"]
[null,null,null,null,null,null,null,null,null,null,null,"La mure"]
[null,null,null,null,null,null,null,null,null,null,null,"La mure d'isere"]
[null,null,null,null,null,null,null,null,null,null,null,"La penne/huveaune"]
[null,null,null,null,null,null,null,null,null,null,null,"La ricamarie"]
[null,null,null,null,null,null,null,null,null,null,null,"La roche sur yon"]
[null,null,null,null,null,null,null,null,null,null,null,"La roque sur pernes"]
[null,null,null,null,null,null,null,null,null,null,null,"La seyne sur mer"]
[null,null,null,null,null,null,null,null,null,null,null,"La sone"]
[null,null,null,null,null,null,null,null,null,null,null,"La tour de salvagny"]
[null,null,null,null,null,null,null,null,null,null,null,"La tour du pin"]
[null,null,null,null,null,null,null,null,null,null,null,"La versanne"]
[null,null,null,null,null,null,null,null,null,null,null,"Laffrey"]
[null,null,null,null,null,null,null,null,null,null,null,"Lalouvesc"]
[null,null,null,null,null,null,null,null,null,null,null,"Lamastre"]
[null,null,null,null,null,null,null,null,null,null,null,"Lanas"]
[null,null,null,null,null,null,null,null,null,null,null,"Lans en vercors"]
[null,null,null,null,null,null,null,null,null,null,null,"Largentiere"]
[null,null,null,null,null,null,null,null,null,null,null,"Larnas"]
[null,null,null,null,null,null,null,null,null,null,null,"Lavilledieu"]
[null,null,null,null,null,null,null,null,null,null,null,"Le bourget du lac"]
[null,null,null,null,null,null,null,null,null,null,null,"Le cannet des maures"]
[null,null,null,null,null,null,null,null,null,null,null,"Le castellet"]
[null,null,null,null,null,null,null,null,null,null,null,"Le cheylard"]
[null,null,null,null,null,null,null,null,null,null,null,"Le coteau"]
[null,null,null,null,null,null,null,null,null,null,null,"Le grand serre"]
[null,null,null,null,null,null,null,null,null,null,null,"Le grau du roi"]
[null,null,null,null,null,null,null,null,null,null,null,"Le lavandou"]
[null,null,null,null,null,null,null,null,null,null,null,"Le luc"]
[null,null,null,null,null,null,null,null,null,null,null,"Le muy"]
[null,null,null,null,null,null,null,null,null,null,null,"Le pontet"]
[null,null,null,null,null,null,null,null,null,null,null,"Le pradet"]
[null,null,null,null,null,null,null,null,null,null,null,"Le thor"]
[null,null,null,null,null,null,null,null,null,null,null,"Ledenon"]
[null,null,null,null,null,null,null,null,null,null,null,"Les adrets de l'esterel"]
[null,null,null,null,null,null,null,null,null,null,null,"Les angles"]
[null,null,null,null,null,null,null,null,null,null,null,"Les arcs"]
[null,null,null,null,null,null,null,null,null,null,null,"Les avenieres"]
[null,null,null,null,null,null,null,null,null,null,null,"Les deux alpes"]
[null,null,null,null,null,null,null,null,null,null,null,"Les issambres"]
[null,null,null,null,null,null,null,null,null,null,null,"Les pennes mirabeau"]
[null,null,null,null,null,null,null,null,null,null,null,"Les sept laux prapoutel"]
[null,null,null,null,null,null,null,null,null,null,null,"Les tourrettes"]
[null,null,null,null,null,null,null,null,null,null,null,"Limas"]
[null,null,null,null,null,null,null,null,null,null,null,"L'isle d'abeau"]
[null,null,null,null,null,null,null,null,null,null,null,"L'isle sur la sorgue"]
[null,null,null,null,null,null,null,null,null,null,null,"Lorgues"]
[null,null,null,null,null,null,null,null,null,null,null,"Lourmarin"]
[null,null,null,null,null,null,null,null,null,null,null,"Lucenay"]
[null,null,null,null,null,null,null,null,null,null,null,"Lyon"]
[null,null,null,null,null,null,null,null,null,null,null,"Lyon 1er"]
[null,null,null,null,null,null,null,null,null,null,null,"Lyon 2eme"]
[null,null,null,null,null,null,null,null,null,null,null,"Lyon 3eme"]
[null,null,null,null,null,null,null,null,null,null,null,"Lyon 4eme"]
[null,null,null,null,null,null,null,null,null,null,null,"Lyon 5eme"]
[null,null,null,null,null,null,null,null,null,null,null,"Lyon 6eme"]
[null,null,null,null,null,null,null,null,null,null,null,"Lyon 7eme"]
[null,null,null,null,null,null,null,null,null,null,null,"Lyon 8eme"]
[null,null,null,null,null,null,null,null,null,null,null,"Lyon 9eme"]
[null,null,null,null,null,null,null,null,null,null,null,"Mably"]
[null,null,null,null,null,null,null,null,null,null,null,"Malataverne"]
[null,null,null,null,null,null,null,null,null,null,null,"Malaucene"]
[null,null,null,null,null,null,null,null,null,null,null,"Mandelieu la napoule"]
[null,null,null,null,null,null,null,null,null,null,null,"Marennes"]
[null,null,null,null,null,null,null,null,null,null,null,"Marsanne"]
[null,null,null,null,null,null,null,null,null,null,null,"Marseille"]
[null,null,null,null,null,null,null,null,null,null,null,"Mazan"]
[null,null,null,null,null,null,null,null,null,null,null,"Meaudre"]
[null,null,null,null,null,null,null,null,null,null,null,"Menerbes"]
[null,null,null,null,null,null,null,null,null,null,null,"Menton"]
[null,null,null,null,null,null,null,null,null,null,null,"Meounes les montrieux"]
[null,null,null,null,null,null,null,null,null,null,null,"Meylan"]
[null,null,null,null,null,null,null,null,null,null,null,"Meyras"]
[null,null,null,null,null,null,null,null,null,null,null,"Milhaud"]
[null,null,null,null,null,null,null,null,null,null,null,"Mions"]
[null,null,null,null,null,null,null,null,null,null,null,"Moirans"]
[null,null,null,null,null,null,null,null,null,null,null,"Mollans sur ouveze"]
[null,null,null,null,null,null,null,null,null,null,null,"Montalieu vercieu"]
[null,null,null,null,null,null,null,null,null,null,null,"Montauban sur l'ouveze"]
[null,null,null,null,null,null,null,null,null,null,null,"Montbonnot saint martin"]
[null,null,null,null,null,null,null,null,null,null,null,"Montboucher sur jabron"]
[null,null,null,null,null,null,null,null,null,null,null,"Monteils"]
[null,null,null,null,null,null,null,null,null,null,null,"Montelimar"]
[null,null,null,null,null,null,null,null,null,null,null,"Montfavet"]
[null,null,null,null,null,null,null,null,null,null,null,"Montrevel"]
[null,null,null,null,null,null,null,null,null,null,null,"Montrond les bains"]
[null,null,null,null,null,null,null,null,null,null,null,"Morestel"]
[null,null,null,null,null,null,null,null,null,null,null,"Mormoiron"]
[null,null,null,null,null,null,null,null,null,null,null,"Mougins"]
[null,null,null,null,null,null,null,null,null,null,null,"Nans les pins"]
[null,null,null,null,null,null,null,null,null,null,null,"Nice"]
[null,null,null,null,null,null,null,null,null,null,null,"Nyons"]
[null,null,null,null,null,null,null,null,null,null,null,"Ollioules"]
[null,null,null,null,null,null,null,null,null,null,null,"Orange"]
[null,null,null,null,null,null,null,null,null,null,null,"Orgnac   l'aven"]
[null,null,null,null,null,null,null,null,null,null,null,"Paris 8eme"]
[null,null,null,null,null,null,null,null,null,null,null,"Peaugres"]
[null,null,null,null,null,null,null,null,null,null,null,"Pertuis en provence"]
[null,null,null,null,null,null,null,null,null,null,null,"Peyrat le chateau"]
[null,null,null,null,null,null,null,null,null,null,null,"Pierrelatte"]
[null,null,null,null,null,null,null,null,null,null,null,"Plaisians"]
[null,null,null,null,null,null,null,null,null,null,null,"Plan de campagne"]
[null,null,null,null,null,null,null,null,null,null,null,"Poet laval"]
[null,null,null,null,null,null,null,null,null,null,null,"Pont de l'isere"]
[null,null,null,null,null,null,null,null,null,null,null,"Pont en royans"]
[null,null,null,null,null,null,null,null,null,null,null,"Port grimaud"]
[null,null,null,null,null,null,null,null,null,null,null,"Portes les valence"]
[null,null,null,null,null,null,null,null,null,null,null,"Pourrieres"]
[null,null,null,null,null,null,null,null,null,null,null,"Privas"]
[null,null,null,null,null,null,null,null,null,null,null,"Pusignan"]
[null,null,null,null,null,null,null,null,null,null,null,"Quincie en beaujolais"]
[null,null,null,null,null,null,null,null,null,null,null,"Quincieux"]
[null,null,null,null,null,null,null,null,null,null,null,"Ramatuelle"]
[null,null,null,null,null,null,null,null,null,null,null,"Rayol canadel sur mer"]
[null,null,null,null,null,null,null,null,null,null,null,"Richerenches"]
[null,null,null,null,null,null,null,null,null,null,null,"Roanne"]
[null,null,null,null,null,null,null,null,null,null,null,"Rochegude"]
[null,null,null,null,null,null,null,null,null,null,null,"Rochepaule"]
[null,null,null,null,null,null,null,null,null,null,null,"Rognac"]
[null,null,null,null,null,null,null,null,null,null,null,"Roiffieux"]
[null,null,null,null,null,null,null,null,null,null,null,"Romaneche thorins"]
[null,null,null,null,null,null,null,null,null,null,null,"Romans"]
[null,null,null,null,null,null,null,null,null,null,null,"Ronno"]
[null,null,null,null,null,null,null,null,null,null,null,"Roquebrune sur argens"]
[null,null,null,null,null,null,null,null,null,null,null,"Rove"]
[null,null,null,null,null,null,null,null,null,null,null,"Saint agreve"]
[null,null,null,null,null,null,null,null,null,null,null,"Saint alban auriolles"]
[null,null,null,null,null,null,null,null,null,null,null,"Saint alban de roche"]
[null,null,null,null,null,null,null,null,null,null,null,"Saint antoine l'abbaye"]
[null,null,null,null,null,null,null,null,null,null,null,"Saint aygulf"]
[null,null,null,null,null,null,null,null,null,null,null,"Saint cannat"]
[null,null,null,null,null,null,null,null,null,null,null,"Saint cezaire sur siagne"]
[null,null,null,null,null,null,null,null,null,null,null,"Saint christol"]
[null,null,null,null,null,null,null,null,null,null,null,"Saint cyprien"]
[null,null,null,null,null,null,null,null,null,null,null,"Saint cyr sur mer"]
[null,null,null,null,null,null,null,null,null,null,null,"Saint desirat"]
[null,null,null,null,null,null,null,null,null,null,null,"Saint didier"]
[null,null,null,null,null,null,null,null,null,null,null,"Saint donat sur herbasse"]
[null,null,null,null,null,null,null,null,null,null,null,"Saint etienne"]
[null,null,null,null,null,null,null,null,null,null,null,"Saint ismier"]
[null,null,null,null,null,null,null,null,null,null,null,"Saint jean d'ardieres"]
[null,null,null,null,null,null,null,null,null,null,null,"Saint jean le centenier"]
[null,null,null,null,null,null,null,null,null,null,null,"Saint laurent de chamousset"]
[null,null,null,null,null,null,null,null,null,null,null,"Saint laurent de mure"]
[null,null,null,null,null,null,null,null,null,null,null,"Saint marcel l'eclaire"]
[null,null,null,null,null,null,null,null,null,null,null,"Saint martin d'heres"]
[null,null,null,null,null,null,null,null,null,null,null,"Saint martin d'uriage"]
[null,null,null,null,null,null,null,null,null,null,null,"Saint martin en haut"]
[null,null,null,null,null,null,null,null,null,null,null,"Saint maximin la sainte baume"]
[null,null,null,null,null,null,null,null,null,null,null,"Saint michel les portes"]
[null,null,null,null,null,null,null,null,null,null,null,"Saint nizier du moucherotte"]
[null,null,null,null,null,null,null,null,null,null,null,"Saint paul"]
[null,null,null,null,null,null,null,null,null,null,null,"Saint paul les monestier"]
[null,null,null,null,null,null,null,null,null,null,null,"Saint paul trois chateaux"]
[null,null,null,null,null,null,null,null,null,null,null,"Saint peray"]
[null,null,null,null,null,null,null,null,null,null,null,"Saint pierre d'allevard"]
[null,null,null,null,null,null,null,null,null,null,null,"Saint pierre de chandieu"]
[null,null,null,null,null,null,null,null,null,null,null,"Saint pierre la palud"]
[null,null,null,null,null,null,null,null,null,null,null,"Saint priest"]
[null,null,null,null,null,null,null,null,null,null,null,"Saint quentin fallavier"]
[null,null,null,null,null,null,null,null,null,null,null,"Saint raphael"]
[null,null,null,null,null,null,null,null,null,null,null,"Saint remeze"]
[null,null,null,null,null,null,null,null,null,null,null,"Saint romain en gal"]
[null,null,null,null,null,null,null,null,null,null,null,"Saint thomas en royans"]
[null,null,null,null,null,null,null,null,null,null,null,"Saint tropez"]
[null,null,null,null,null,null,null,null,null,null,null,"Sainte foy les lyon"]
[null,null,null,null,null,null,null,null,null,null,null,"Sainte helene sur isere"]
[null,null,null,null,null,null,null,null,null,null,null,"Sainte maxime"]
[null,null,null,null,null,null,null,null,null,null,null,"Sainte paule"]
[null,null,null,null,null,null,null,null,null,null,null,"Salernes"]
[null,null,null,null,null,null,null,null,null,null,null,"Salon de provence"]
[null,null,null,null,null,null,null,null,null,null,null,"Sampzon"]
[null,null,null,null,null,null,null,null,null,null,null,"Sanary sur mer"]
[null,null,null,null,null,null,null,null,null,null,null,"Sancerre"]
[null,null,null,null,null,null,null,null,null,null,null,"Sanilhac"]
[null,null,null,null,null,null,null,null,null,null,null,"Sarcey"]
[null,null,null,null,null,null,null,null,null,null,null,"Sassenage"]
[null,null,null,null,null,null,null,null,null,null,null,"Sathonay camp"]
[null,null,null,null,null,null,null,null,null,null,null,"Satolas et bonce"]
[null,null,null,null,null,null,null,null,null,null,null,"Saumane de vaucluse"]
[null,null,null,null,null,null,null,null,null,null,null,"Sausset les pins"]
[null,null,null,null,null,null,null,null,null,null,null,"Sauzet"]
[null,null,null,null,null,null,null,null,null,null,null,"Septeme"]
[null,null,null,null,null,null,null,null,null,null,null,"Serignan du comtat"]
[null,null,null,null,null,null,null,null,null,null,null,"Seyssins"]
[null,null,null,null,null,null,null,null,null,null,null,"Siecq"]
[null,null,null,null,null,null,null,null,null,null,null,"Signes"]
[null,null,null,null,null,null,null,null,null,null,null,"Simard"]
[null,null,null,null,null,null,null,null,null,null,null,"Six fours les plages"]
[null,null,null,null,null,null,null,null,null,null,null,"Solaize"]
[null,null,null,null,null,null,null,null,null,null,null,"Sollies pont"]
[null,null,null,null,null,null,null,null,null,null,null,"Sorgues"]
[null,null,null,null,null,null,null,null,null,null,null,"St chamond"]
[null,null,null,null,null,null,null,null,null,null,null,"St egreve"]
[null,null,null,null,null,null,null,null,null,null,null,"St marcel d'ardeche"]
[null,null,null,null,null,null,null,null,null,null,null,"St marcel les valence"]
[null,null,null,null,null,null,null,null,null,null,null,"St martin d'ardeche"]
[null,null,null,null,null,null,null,null,null,null,null,"St martin de valgalgues"]
[null,null,null,null,null,null,null,null,null,null,null,"St martin la plaine"]
[null,null,null,null,null,null,null,null,null,null,null,"St nazaire en royans"]
[null,null,null,null,null,null,null,null,null,null,null,"St pierre d'albigny"]
[null,null,null,null,null,null,null,null,null,null,null,"St pierre de chartreuse"]
[null,null,null,null,null,null,null,null,null,null,null,"St vallier"]
[null,null,null,null,null,null,null,null,null,null,null,"Suze la rousse"]
[null,null,null,null,null,null,null,null,null,null,null,"Tain l'hermitage"]
[null,null,null,null,null,null,null,null,null,null,null,"Talence"]
[null,null,null,null,null,null,null,null,null,null,null,"Ternay"]
[null,null,null,null,null,null,null,null,null,null,null,"Thueyts"]
[null,null,null,null,null,null,null,null,null,null,null,"Toulon"]
[null,null,null,null,null,null,null,null,null,null,null,"Toulouse"]
[null,null,null,null,null,null,null,null,null,null,null,"Tournon"]
[null,null,null,null,null,null,null,null,null,null,null,"Tournon sur rhone"]
[null,null,null,null,null,null,null,null,null,null,null,"Tourtour"]
[null,null,null,null,null,null,null,null,null,null,null,"Trets"]
[null,null,null,null,null,null,null,null,null,null,null,"Trigance"]
[null,null,null,null,null,null,null,null,null,null,null,"Upie"]
[null,null,null,null,null,null,null,null,null,null,null,"Usson en forez"]
[null,null,null,null,null,null,null,null,null,null,null,"Vaison la romaine"]
[null,null,null,null,null,null,null,null,null,null,null,"Valaurie"]
[null,null,null,null,null,null,null,null,null,null,null,"Valberg"]
[null,null,null,null,null,null,null,null,null,null,null,"Valbonne"]
[null,null,null,null,null,null,null,null,null,null,null,"Valence"]
[null,null,null,null,null,null,null,null,null,null,null,"Vallon pont d'arc"]
[null,null,null,null,null,null,null,null,null,null,null,"Valreas"]
[null,null,null,null,null,null,null,null,null,null,null,"Vals les bains"]
[null,null,null,null,null,null,null,null,null,null,null,"Vaulx en velin"]
[null,null,null,null,null,null,null,null,null,null,null,"Vauvenargues"]
[null,null,null,null,null,null,null,null,null,null,null,"Vedene"]
[null,null,null,null,null,null,null,null,null,null,null,"Velleron"]
[null,null,null,null,null,null,null,null,null,null,null,"Vence"]
[null,null,null,null,null,null,null,null,null,null,null,"Venissieux"]
[null,null,null,null,null,null,null,null,null,null,null,"Vernoux en vivarais"]
[null,null,null,null,null,null,null,null,null,null,null,"Vers pont du gard"]
[null,null,null,null,null,null,null,null,null,null,null,"Vesc"]
[null,null,null,null,null,null,null,null,null,null,null,"Vidauban"]
[null,null,null,null,null,null,null,null,null,null,null,"Vienne"]
[null,null,null,null,null,null,null,null,null,null,null,"Vierzon"]
[null,null,null,null,null,null,null,null,null,null,null,"Villard de lans"]
[null,null,null,null,null,null,null,null,null,null,null,"Villars"]
[null,null,null,null,null,null,null,null,null,null,null,"Villecroze"]
[null,null,null,null,null,null,null,null,null,null,null,"Villefontaine"]
[null,null,null,null,null,null,null,null,null,null,null,"Villefranche sur saone"]
[null,null,null,null,null,null,null,null,null,null,null,"Villeneuve les avignon"]
[null,null,null,null,null,null,null,null,null,null,null,"Villeneuve loubet"]
[null,null,null,null,null,null,null,null,null,null,null,"Villeurbanne"]
[null,null,null,null,null,null,null,null,null,null,null,"Villotte sur aire"]
[null,null,null,null,null,null,null,null,null,null,null,"Vinsobres"]
[null,null,null,null,null,null,null,null,null,null,null,"Vitrolles"]
[null,null,null,null,null,null,null,null,null,null,null,"Voglans"]
[null,null,null,null,null,null,null,null,null,null,null,"Vogüe"]
[null,null,null,null,null,null,null,null,null,null,null,"Voiron"]
[null,null,null,null,null,null,null,null,null,null,null,"Voreppe"]

{"sheet":"BDD","index":1,"n_rows":1000,"n_cols":12,"rows_kept":1000,"cut":false,"hidden":false,"merged":[[0,2,0,3],[0,4,0,5]]}
[null,"Bonbache.fr","Bonbache.fr/Excel",null,"Bonbache.fr/ExcelVBA",null,"Livres Excel",null,null,null,{"$f":"_xlfn._xlws.SORT(_xlfn.UNIQUE(dep))","v":"06-Alpes Maritimes"},{"$f":"_xlfn._xlws.SORT(_xlfn.UNIQUE(villes))","v":"Agay"}]
[null,null,null,null,null,null,null,null,null,null,"07-Ardèche","Aigues mortes"]
[null,"Raison sociale","Activité","Département","Ville",null,null,null,null,null,"13-Bouches du Rhone","Aix en provence"]
[null,"FOLIES DU LAC","Spectacle","26-Drome","Chateauneuf sur isere",null,null,null,null,null,"17-Charente Maritime","Aizac"]
[null,"LA FERME AUX CROCODILES","Parc animalier","26-Drome","Pierrelatte",null,null,null,null,null,"18-Cher","Ajoux"]
[null,"MAISON PIC - Relais et Chateaux Pic","Restaurant","26-Drome","Valence",null,null,null,null,null,"26-Drome","Alba la romaine"]
[null,"VILLA AUGUSTA","Hôtel/Restaurant","26-Drome","Saint paul trois chateaux",null,null,null,null,null,"30-Gard","Albon"]
[null,"LA CHAUMETTE","Hôtel","07-Ardèche","Privas",null,null,null,null,null,"31-Haute Garonne","Alboussiere"]
[null,"La Pinède","Hôtel/Restaurant","07-Ardèche","Aubenas",null,null,null,null,null,"33-Gironde","Ales"]
[null,"Domaine du Colombier","Hôtel/Restaurant","26-Drome","Malataverne",null,null,null,null,null,"38-Isère","Alissas"]
[null,"Domaine de la Valdaine","Hôtel/Restaurant","26-Drome","Montboucher sur jabron",null,null,null,null,null,"42-Loire","Alixan"]
[null,"Golf d'Albon","Golf","26-Drome","Albon",null,null,null,null,null,"55-Meuse","Allevard"]
[null,"Walibi","parc d'attraction","38-Isère","Les avenieres",null,null,null,null,null,"69-Rhone","Alpe d'huez"]
[null,"SAFARI DE PEAUGRES","Parc animalier","07-Ardèche","Peaugres",null,null,null,null,null,"71-Saone et Loire","Andrezieux boutheon"]
[null,"Adventure Camp","parc d'attraction","07-Ardèche","Vals les bains",null,null,null,null,null,"73-Savoie","Annonay"]
[null,"Golf des Chanalets","Golf","26-Drome","Valence",null,null,null,null,null,"75-Paris","Antibes"]
[null,"Yan's Hotel","Hôtel/Restaurant","26-Drome","Valence",null,null,null,null,null,"83-Var","Antibes juan les pins"]
[null,"Chemin de fer du Vivarais","parc d'attraction","07-Ardèche","Tournon sur rhone",null,null,null,null,null,"84-Vaucluse","Antraigues sur volane"]
[null,"Novotel Valence","Hôtel/Restaurant","26-Drome","Valence",null,null,null,null,null,"85-Vendée","Ardoix"]
[null,"Hôtel ibis Valence","Hôtel/Restaurant","26-Drome","Valence",null,null,null,null,null,"87-Haute Vienne","Aubagne"]
[null,"Thermes de Neyrac-les-bains","Thermes","07-Ardèche","Meyras",null,null,null,null,null,null,"Aubenas"]
[null,"Rêveries du lac","Hôtel/Restaurant","26-Drome","Chateauneuf sur isere",null,null,null,null,null,null,"Aups"]
[null,"Hôtel de France","Hôtel","26-Drome","Valence",null,null,null,null,null,null,"Autrans"]
[null,"Thermes de Vals les Bains","Thermes","07-Ardèche","Vals les bains",null,null,null,null,null,null,"Avenas"]
[null,"CEGEP","Vacances","26-Drome","Valence",null,null,null,null,null,null,"Avignon"]
[null,"Hôtel Campanile","Hôtel/Restaurant","26-Drome","Valence",null,null,null,null,null,null,"Baix"]
[null,"Mercure Valence Sud","Hôtel/Restaurant","26-Drome","Valence",null,null,null,null,null,null,"Balazuc"]
[null,"Restaurant Rive Gauche","Restaurant","26-Drome","Tain l'hermitage",null,null,null,null,null,null,"Bandol"]
[null,"NOUVEL HOTEL","Hôtel/Restaurant","26-Drome","Portes les valence",null,null,null,null,null,null,"Banne"]
[null,"HOTEL DE LYON","Hôtel/Restaurant","26-Drome","Valence",null,null,null,null,null,null,"Beaucaire"]
[null,"Les châteaux de la drôme","Visite/Loisir","26-Drome","Valence",null,null,null,null,null,null,"Beauchastel"]
[null,"ATRIUM HOTEL","Hôtel/Restaurant","26-Drome","Valence",null,null,null,null,null,null,"Beaulieu"]
[null,"L'OLIVERAIE","Hôtel/Restaurant","26-Drome","Valence",null,null,null,null,null,null,"Beauregard baret"]
[null,"Ardèche Montgolfières","Loisir/Sport","07-Ardèche","Annonay",null,null,null,null,null,null,"Beausemblant"]
[null,"HOTEL LES CEDRES","Hôtel/Restaurant","07-Ardèche","Joyeuse",null,null,null,null,null,null,"Beauvoir en royans"]
[null,"Le bateau à roue","Visite/Loisir","26-Drome","St nazaire en royans",null,null,null,null,null,null,"Belmont d'azergues"]
[null,"Le jardin des fontaines pétrifiantes","Visite/Loisir","38-Isère","La sone",null,null,null,null,null,null,"Berrias et casteljau"]
[null,"La Grotte Préhistorique de Thaïs","Visite/Loisir","26-Drome","St nazaire en royans",null,null,null,null,null,null,"Besse"]
[null,"Aqueduc de St Nazaire","Visite/Loisir","26-Drome","St nazaire en royans",null,null,null,null,null,null,"Bidon"]
[null,"L'HOSTELLERIE DES PINS ***","Hôtel/Restaurant","26-Drome","Montelimar",null,null,null,null,null,null,"Boffres"]
[null,"HOTEL RESTAURANT CHARTRON","Hôtel/Restaurant","26-Drome","Saint donat sur herbasse",null,null,null,null,null,null,"Bollene"]
[null,"LE MOULIN DE VALAURIE","Hôtel/Restaurant","26-Drome","Valaurie",null,null,null,null,null,null,"Bonnieux"]
[null,"LES HOSPITALIERS","Hôtel/Restaurant","26-Drome","Poet laval",null,null,null,null,null,null,"Boree"]
[null,"LE CHATEAU","Hôtel/Restaurant","07-Ardèche","Tournon sur rhone",null,null,null,null,null,null,"Bormes les mimosas"]
[null,"GRAND HOTEL DES BAINS","Hôtel/Restaurant","07-Ardèche","Vals les bains",null,null,null,null,null,null,"Bouc bel air"]
[null,"L'Atelier de la soierie","Visite/Loisir","69-Rhone","Lyon 1er",null,null,null,null,null,null,"Bouchet"]
[null,"Le Petit Musée Fantastique de Guignol","Spectacle","69-Rhone","Lyon 5eme",null,null,null,null,null,null,"Boucieu le roi"]
[null,"BAHO BEACH RESTAURANT","Restaurant","69-Rhone","Quincieux",null,null,null,null,null,null,"Bouillargues"]
[null,"ROUGE TENDANCE","Restaurant","69-Rhone","Lyon 8eme",null,null,null,null,null,null,"Bourg de peage"]
[null,"SOFITEL LYON BELLECOUR","Hôtel/Restaurant","69-Rhone","Lyon 2eme",null,null,null,null,null,null,"Bourg les valence"]
[null,"Musée des Beaux-Arts","Visite/Loisir","69-Rhone","Lyon 1er",null,null,null,null,null,null,"Bourg saint andeol"]
[null,"Musée Gallo-Romain","Visite/Loisir","69-Rhone","Lyon 5eme",null,null,null,null,null,null,"Bourgoin jallieu"]
[null,"Musée Internationnal de la miniature","Visite/Loisir","69-Rhone","Lyon 5eme",null,null,null,null,null,null,"Bresson"]
[null,"Musée des tissus et des arts décoratifs","Visite/Loisir","69-Rhone","Lyon 2eme",null,null,null,null,null,null,"Brie et angonnes"]
[null,"Musée Lumière","Visite/Loisir","69-Rhone","Lyon 8eme",null,null,null,null,null,null,"Brignais"]
[null,"Musée Gallo-Romain","Visite/Loisir","69-Rhone","Saint romain en gal",null,null,null,null,null,null,"Brignoles"]
[null,"La Basilique de Fourvière","Visite/Loisir","69-Rhone","Lyon 5eme",null,null,null,null,null,null,"Buis les baronnies"]
[null,"Parc de la Tête d'Or","Visite/Loisir","69-Rhone","Lyon 6eme",null,null,null,null,null,null,"Bully"]
[null,"LA ROTONDE","Restaurant","69-Rhone","La tour de salvagny",null,null,null,null,null,null,"Callas"]
[null,"CITY AVENTURE","parc d'attraction","69-Rhone","Sainte foy les lyon",null,null,null,null,null,null,"Callian"]
[null,"LE NAUTILE","parc d'attraction","69-Rhone","Villefranche sur saone",null,null,null,null,null,null,"Caluire"]
[null,"LE PARC DE COURZIEU","Parc animalier","69-Rhone","Courzieu",null,null,null,null,null,null,"Camps la source"]
[null,"CANOED","Loisir/Sport","69-Rhone","Condrieu",null,null,null,null,null,null,"Cannes"]
[null,"MEGAZONE LASER GAMES","parc d'attraction","69-Rhone","Lyon 6eme",null,null,null,null,null,null,"Cannes la bocca"]
[null,"NAUTILUS CLUB","Discotheque","69-Rhone","Cublize",null,null,null,null,null,null,"Carpentras"]
[null,"NEW HOLLYWOOD","Discotheque","69-Rhone","Lyon 8eme",null,null,null,null,null,null,"Carqueiranne"]
[null,"NEW ORLEANS","Discotheque","69-Rhone","Lyon 5eme",null,null,null,null,null,null,"Cavaillon"]
[null,"LE PAPAGAYO","Discotheque","69-Rhone","Lyon 5eme",null,null,null,null,null,null,"Cavalaire sur mer"]
[null,"La Cour des Loges","Hôtel","69-Rhone","Lyon 5eme",null,null,null,null,null,null,"Cellieu"]
[null,"Hôtel de Bretagne - Hotel Lyon","Hôtel","69-Rhone","Lyon 2eme",null,null,null,null,null,null,"Chabeuil"]
[null,"Grand Hôtel des Terreaux","Hôtel","69-Rhone","Lyon 1er",null,null,null,null,null,null,"Chalencon"]
[null,"Hôtel Dubost","Hôtel","69-Rhone","Lyon 2eme",null,null,null,null,null,null,"Champagne"]
[null,"Boscolo Hôtel","Hôtel","69-Rhone","Lyon 2eme",null,null,null,null,null,null,"Champagne au mont d'or"]
[null,"Hilton Lyon","Hôtel/Restaurant","69-Rhone","Lyon 6eme",null,null,null,null,null,null,"Champier"]
[null,"Hôtel Mercure","Hôtel/Restaurant","69-Rhone","Lyon",null,null,null,null,null,null,"Chamrousse"]
[null,"Hôtel Le Richelieu","Hôtel","69-Rhone","Lyon 6eme",null,null,null,null,null,null,"Chanas"]
[null,"LA GRANGE AU BOUC","Discotheque","69-Rhone","Lyon 5eme",null,null,null,null,null,null,"Chandolas"]
[null,"LE BALDINGO","Discotheque","69-Rhone","Lyon 1er",null,null,null,null,null,null,"Charmes sur rhone"]
[null,"LE FRIDGE","Discotheque","69-Rhone","Lyon 3eme",null,null,null,null,null,null,"Chasse sur rhone"]
[null,"LE SIX","Discotheque","69-Rhone","Limas",null,null,null,null,null,null,"Chassiers"]
[null,"Hôtel Olympique","Hôtel","69-Rhone","Lyon 6eme",null,null,null,null,null,null,"Chateaudouble"]
[null,"Hôtel du Théâtre","Hôtel","69-Rhone","Lyon 2eme",null,null,null,null,null,null,"Chateauneuf du pape"]
[null,"FASTHOTEL","Hôtel","69-Rhone","Irigny",null,null,null,null,null,null,"Chateauneuf du rhone"]
[null,"CLUB PRIVE HAVANNA","Discotheque","69-Rhone","Corbas",null,null,null,null,null,null,"Chateauneuf sur isere"]
[null,"KEYI KINGSTON LIFE","Discotheque","69-Rhone","Lyon 5eme",null,null,null,null,null,null,"Chatte"]
[null,"LE COPACABANA","Discotheque","69-Rhone","Lyon 7eme",null,null,null,null,null,null,"Chomerac"]
[null,"LE DIAMANT NOIR","Discotheque","69-Rhone","Lyon 5eme",null,null,null,null,null,null,"Choranche"]
[null,"LE 10","Discotheque","69-Rhone","Lyon 1er",null,null,null,null,null,null,"Cliousclat"]
[null,"LE DJOLIBA","Discotheque","69-Rhone","Lyon 7eme",null,null,null,null,null,null,"Cogolin"]
[null,"Le FOX-TROT","Discotheque","69-Rhone","Lyon 7eme",null,null,null,null,null,null,"Colombier le vieux"]
[null,"Akalud Evasion","parc d'attraction","69-Rhone","Ronno",null,null,null,null,null,null,"Comps"]
[null,"Hôtel Britania","Hôtel","69-Rhone","Lyon 6eme",null,null,null,null,null,null,"Condrieu"]
[null,"LE LOFT CLUB","Discotheque","69-Rhone","Lyon 7eme",null,null,null,null,null,null,"Corbas"]
[null,"Aquarium du Grand Lyon","parc d'attraction","69-Rhone","La mulatiere",null,null,null,null,null,null,"Cornas"]
[null,"Hôtel Charlemagne","Hôtel/Restaurant","69-Rhone","Lyon 2eme",null,null,null,null,null,null,"Courzieu"]
[null,"All Suites La Reine Astrid","Hôtel/Restaurant","69-Rhone","Lyon 6eme",null,null,null,null,null,null,"Coux"]
[null,"Au Patio Morand","Hôtel","69-Rhone","Lyon 6eme",null,null,null,null,null,null,"Crest"]
[null,"Campanile Lyon Centre Perrache","Hôtel/Restaurant","69-Rhone","Lyon 2eme",null,null,null,null,null,null,"Crolles"]
[null,"Château de Pizay","Hôtel/Restaurant","69-Rhone","Lyon",null,null,null,null,null,null,"Crupies"]
[null,"Hôtel Carlton","Hôtel","69-Rhone","Lyon 2eme",null,null,null,null,null,null,"Cublize"]
[null,"Aventures concept","parc d'attraction","69-Rhone","Avenas",null,null,null,null,null,null,"Cuges les pins"]
[null,"HOTEL DU HELDER","Hôtel","69-Rhone","Lyon 7eme",null,null,null,null,null,null,"Dardilly"]
[null,"HOTEL DU SIMPLON","Hôtel","69-Rhone","Lyon 2eme",null,null,null,null,null,null,"Dieulefit"]
[null,"HOTEL IBIS","Hôtel/Restaurant","69-Rhone","Lyon 7eme",null,null,null,null,null,null,"Donzere"]
[null,"Paintball Nature","parc d'attraction","69-Rhone","Mions",null,null,null,null,null,null,"Draguignan"]
[null,"Hôtel Kyriad","Hôtel/Restaurant","69-Rhone","Lyon 2eme",null,null,null,null,null,null,"Drumettaz clarafond"]
[null,"HOTEL LA RESIDENCE","Hôtel","69-Rhone","Lyon 2eme",null,null,null,null,null,null,"Echirolles"]
[null,"Hôtel La Tour Rose","Hôtel/Restaurant","69-Rhone","Lyon 5eme",null,null,null,null,null,null,"Ecully"]
[null,"Hôtel le Roosevelt","Hôtel","69-Rhone","Lyon 6eme",null,null,null,null,null,null,"Epinouze"]
[null,"Fourvière Aventures","parc d'attraction","69-Rhone","Lyon 5eme",null,null,null,null,null,null,"Eybens"]
[null,"Monte Cristo","Discotheque","69-Rhone","Caluire",null,null,null,null,null,null,"Fayence"]
[null,"Fort de Montcorin","parc d'attraction","69-Rhone","Irigny",null,null,null,null,null,null,"Felines"]
[null,"Koala","parc d'attraction","69-Rhone","Sainte foy les lyon",null,null,null,null,null,null,"Flassans sur issole"]
[null,"La Forêt de l'Aventure","parc d'attraction","69-Rhone","Cublize",null,null,null,null,null,null,"Flayosc"]
[null,"NOVOTEL","Hôtel/Restaurant","69-Rhone","Lyon 3eme",null,null,null,null,null,null,"Fontaine"]
[null,"HOTEL RESTAURANT SAPHIR","Hôtel/Restaurant","69-Rhone","Lyon 9eme",null,null,null,null,null,null,"Fontaine de vaucluse"]
[null,"Hôtel Villa Florentine","Hôtel","69-Rhone","Lyon 5eme",null,null,null,null,null,null,"Fontanil cornillon"]
[null,"LA CROIX ROUSSE","Hôtel","69-Rhone","Lyon 4eme",null,null,null,null,null,null,"Frejus"]
[null,"PLANTATION DISCOTHEQUE","Discotheque","69-Rhone","Lyon 2eme",null,null,null,null,null,null,"Gardanne"]
[null,"L'ARC EN CIEL","Discotheque","69-Rhone","Quincie en beaujolais",null,null,null,null,null,null,"Gassin"]
[null,"FLAMENCO ROCK","Discotheque","69-Rhone","Lyon 9eme",null,null,null,null,null,null,"Gemenos"]
[null,"LE KOBDO","Discotheque","69-Rhone","Lyon 5eme",null,null,null,null,null,null,"Genas"]
[null,"L'OPERA ROCK","Discotheque","69-Rhone","Lyon 1er",null,null,null,null,null,null,"Gervans"]
[null,"LA BODEGA","Discotheque","69-Rhone","Villefranche sur saone",null,null,null,null,null,null,"Gieres"]
[null,"Le symbol - privilège","Discotheque","69-Rhone","Solaize",null,null,null,null,null,null,"Givors"]
[null,"LA FIESTA","Discotheque","69-Rhone","Condrieu",null,null,null,null,null,null,"Gonfaron"]
[null,"LA ROCADE","Discotheque","69-Rhone","Corbas",null,null,null,null,null,null,"Gordes"]
[null,"LA SALSA","Discotheque","69-Rhone","Lyon 1er",null,null,null,null,null,null,"Grans"]
[null,"LA STORIA","Discotheque","69-Rhone","Villefranche sur saone",null,null,null,null,null,null,"Grenay"]
[null,"L'APSARA","Discotheque","69-Rhone","Saint jean d'ardieres",null,null,null,null,null,null,"Grenoble"]
[null,"LE CERCLE","Discotheque","69-Rhone","Ternay",null,null,null,null,null,null,"Grignan"]
[null,"LA RIVIERA","Discotheque","26-Drome","Alixan",null,null,null,null,null,null,"Grimaud"]
[null,"GALAXY KOMPLEX","Discotheque","26-Drome","Beausemblant",null,null,null,null,null,null,"Grospierres"]
[null,"DISCOTHEQUE LE MAGIC","Discotheque","69-Rhone","Saint marcel l'eclaire",null,null,null,null,null,null,"Hostun"]
[null,"LE DRUNGLY","Discotheque","69-Rhone","Pusignan",null,null,null,null,null,null,"Hyeres les palmiers"]
[null,"FISH","Discotheque","69-Rhone","Lyon 3eme",null,null,null,null,null,null,"Irigny"]
[null,"LE MAMBO","Discotheque","69-Rhone","Lyon 5eme",null,null,null,null,null,null,"Izeron"]
[null,"LE MARAIS","Discotheque","69-Rhone","Lyon 2eme",null,null,null,null,null,null,"Joyeuse"]
[null,"LE PALACIO","Discotheque","69-Rhone","Quincieux",null,null,null,null,null,null,"La balme les grottes"]
[null,"LE PARADISO","Discotheque","69-Rhone","Lyon 1er",null,null,null,null,null,null,"La baume de transit"]
[null,"LE SAXO-K","Discotheque","69-Rhone","Villefranche sur saone",null,null,null,null,null,null,"La begude de mazenc"]
[null,"LE MADRAS 2","Discotheque","69-Rhone","Lyon 1er",null,null,null,null,null,null,"La cadiere d'azur"]
[null,"BLACK AND WHITE","Discotheque","69-Rhone","Lyon 5eme",null,null,null,null,null,null,"La calmette"]
[null,"BAMBOU CLUB","Discotheque","69-Rhone","Lyon 5eme",null,null,null,null,null,null,"La celle"]
[null,"MADISON","Discotheque","69-Rhone","Saint martin en haut",null,null,null,null,null,null,"La ciotat"]
[null,"OSCAR DISCOTHEQUE","Discotheque","69-Rhone","Dardilly",null,null,null,null,null,null,"La crau"]
[null,"Indian's Vallée","parc d'attraction","26-Drome","Beauregard baret",null,null,null,null,null,null,"La croix valmer"]
[null,"Hôtel Radison","Hôtel","69-Rhone","Lyon 3eme",null,null,null,null,null,null,"La garde"]
[null,"Résidence Park & Suites Part-Dieu","Hôtel/Restaurant","69-Rhone","Lyon 3eme",null,null,null,null,null,null,"La garde adhemar"]
[null,"Résidence Residéal Lyon Bellecour","Hôtel/Restaurant","69-Rhone","Lyon 2eme",null,null,null,null,null,null,"La garde freinet"]
[null,"Balladins Confort","Hôtel","26-Drome","Montelimar",null,null,null,null,null,null,"La martre"]
[null,"LE BLUE NOTE","Discotheque","26-Drome","Chabeuil",null,null,null,null,null,null,"La motte"]
[null,"Le Jardin aux Oiseaux","Parc animalier","26-Drome","Upie",null,null,null,null,null,null,"La motte de galaure"]
[null,"Paintball Loisir","Loisir/Sport","26-Drome","Portes les valence",null,null,null,null,null,null,"La mulatiere"]
[null,"Laser Game","Loisir/Sport","26-Drome","Valence",null,null,null,null,null,null,"La mure"]
[null,"LE KAYA","Discotheque","26-Drome","Alixan",null,null,null,null,null,null,"La mure d'isere"]
[null,"LE RETRO","Discotheque","26-Drome","Gervans",null,null,null,null,null,null,"La penne/huveaune"]
[null,"LE SUMBA","Discotheque","26-Drome","Epinouze",null,null,null,null,null,null,"La ricamarie"]
[null,"LE SUNSHINE","Discotheque","26-Drome","Valence",null,null,null,null,null,null,"La roche sur yon"]
[null,"LE WHY","Discotheque","26-Drome","Albon",null,null,null,null,null,null,"La roque sur pernes"]
[null,"L'ENDROIT","Discotheque","26-Drome","Bourg les valence",null,null,null,null,null,null,"La seyne sur mer"]
[null,"LES RAMIERES","Discotheque","26-Drome","La baume de transit",null,null,null,null,null,null,"La sone"]
[null,"L'ESCAPADE","Discotheque","26-Drome","Montelimar",null,null,null,null,null,null,"La tour de salvagny"]
[null,"Château de Rochegude ****","Hôtel/Restaurant","26-Drome","Rochegude",null,null,null,null,null,null,"La tour du pin"]
[null,"MANOIR DE LA ROSERAIE ****","Hôtel/Restaurant","26-Drome","Grignan",null,null,null,null,null,null,"La versanne"]
[null,"LA BASTIDE DE GRIGNAN ***","Hôtel","26-Drome","Grignan",null,null,null,null,null,null,"Laffrey"]
[null,"RELAIS DE L'EMPEREUR","Hôtel/Restaurant","26-Drome","Montelimar",null,null,null,null,null,null,"Lalouvesc"]
[null,"LE LOGIS DE L'ESCALIN ***","Hôtel/Restaurant","26-Drome","La garde adhemar",null,null,null,null,null,null,"Lamastre"]
[null,"LES ARCADES LE LION D'OR **","Hôtel/Restaurant","26-Drome","Buis les baronnies",null,null,null,null,null,null,"Lanas"]
[null,"LE CASTEL","Discotheque","26-Drome","Bouchet",null,null,null,null,null,null,"Lans en vercors"]
[null,"LE DOMAINE","Discotheque","26-Drome","Pont de l'isere",null,null,null,null,null,null,"Largentiere"]
[null,"L'HACIENDA","Discotheque","26-Drome","Sauzet",null,null,null,null,null,null,"Larnas"]
[null,"AGORA","Discotheque","26-Drome","Montboucher sur jabron",null,null,null,null,null,null,"Lavilledieu"]
[null,"Discothèque Le Channel's","Discotheque","26-Drome","Bouchet",null,null,null,null,null,null,"Le bourget du lac"]
[null,"Discothèque Le Midnight","Discotheque","26-Drome","La garde adhemar",null,null,null,null,null,null,"Le cannet des maures"]
[null,"Discothèque le Verseau","Discotheque","26-Drome","Saint thomas en royans",null,null,null,null,null,null,"Le castellet"]
[null,"LA FERME","Discotheque","26-Drome","Chateauneuf du rhone",null,null,null,null,null,null,"Le cheylard"]
[null,"LA PLAGE","Discotheque","26-Drome","Valence",null,null,null,null,null,null,"Le coteau"]
[null,"LA SPIRALE","Discotheque","26-Drome","Portes les valence",null,null,null,null,null,null,"Le grand serre"]
[null,"Le Monde Merveilleux des Lutins","parc d'attraction","26-Drome","Hostun",null,null,null,null,null,null,"Le grau du roi"]
[null,"LE JABRON","Hôtel/Restaurant","26-Drome","La begude de mazenc",null,null,null,null,null,null,"Le lavandou"]
[null,"LE SAINT MARC **","Hôtel/Restaurant","26-Drome","Mollans sur ouveze",null,null,null,null,null,null,"Le luc"]
[null,"LE SEVIGNE **","Hôtel/Restaurant","26-Drome","Grignan",null,null,null,null,null,null,"Le muy"]
[null,"L'ESCARGOT D'OR **","Hôtel/Restaurant","26-Drome","Dieulefit",null,null,null,null,null,null,"Le pontet"]
[null,"VILLA ELAIA","Hôtel/Restaurant","84-Vaucluse","Vaison la romaine",null,null,null,null,null,null,"Le pradet"]
[null,"HOTEL DU COMTE **","Hôtel","26-Drome","Suze la rousse",null,null,null,null,null,null,"Le thor"]
[null,"LA BADIANE","Hôtel/Restaurant","26-Drome","Montauban sur l'ouveze",null,null,null,null,null,null,"Ledenon"]
[null,"L'HIBISCUS","Hôtel/Restaurant","26-Drome","Donzere",null,null,null,null,null,null,"Les adrets de l'esterel"]
[null,"Parc de Loisirs Aquatiques du Nyonsais","parc d'attraction","26-Drome","Nyons",null,null,null,null,null,null,"Les angles"]
[null,"Parc Le Petit Cirque","parc d'attraction","26-Drome","Chateaudouble",null,null,null,null,null,null,"Les arcs"]
[null,"Parc Oasis Aventura","parc d'attraction","26-Drome","Le grand serre",null,null,null,null,null,null,"Les avenieres"]
[null,"Acro Pôle Aventure","parc d'attraction","26-Drome","Comps",null,null,null,null,null,null,"Les deux alpes"]
[null,"Cent pour Cent Loisirs","Loisir/Sport","26-Drome","Les tourrettes",null,null,null,null,null,null,"Les issambres"]
[null,"Domaine de Damian","Camping/Location","26-Drome","Vesc",null,null,null,null,null,null,"Les pennes mirabeau"]
[null,"La Forêt de Robin","parc d'attraction","26-Drome","Marsanne",null,null,null,null,null,null,"Les sept laux prapoutel"]
[null,"Laser Game Le Complex Indépendant","Loisir/Sport","26-Drome","Montelimar",null,null,null,null,null,null,"Les tourrettes"]
[null,"CUBANITO","Discotheque","07-Ardèche","Vallon pont d'arc",null,null,null,null,null,null,"Limas"]
[null,"LE GIBUS","Discotheque","07-Ardèche","Lalouvesc",null,null,null,null,null,null,"L'isle d'abeau"]
[null,"Centre de Loisirs Saint Paul 2003","Loisir/Sport","26-Drome","Saint paul trois chateaux",null,null,null,null,null,null,"L'isle sur la sorgue"]
[null,"LE NIGHT","Discotheque","07-Ardèche","Vernoux en vivarais",null,null,null,null,null,null,"Lorgues"]
[null,"LE TRAVOLTA","Discotheque","07-Ardèche","Joyeuse",null,null,null,null,null,null,"Lourmarin"]
[null,"L'HILARIOS","Discotheque","07-Ardèche","Tournon sur rhone",null,null,null,null,null,null,"Lucenay"]
[null,"L'OPERA","Discotheque","07-Ardèche","Lamastre",null,null,null,null,null,null,"Lyon"]
[null,"BOMBA","Discotheque","07-Ardèche","Felines",null,null,null,null,null,null,"Lyon 1er"]
[null,"Domaine Le Sagittaire","parc d'attraction","26-Drome","Vinsobres",null,null,null,null,null,null,"Lyon 2eme"]
[null,"DANCING LE TITANIC","Discotheque","07-Ardèche","Chandolas",null,null,null,null,null,null,"Lyon 3eme"]
[null,"DISCOTHEQUE CHATEAU LACOUR","Discotheque","07-Ardèche","Saint agreve",null,null,null,null,null,null,"Lyon 4eme"]
[null,"DISCOTHEQUE LE PRIVE","Discotheque","07-Ardèche","Saint peray",null,null,null,null,null,null,"Lyon 5eme"]
[null,"LA BODEGA","Discotheque","07-Ardèche","Le cheylard",null,null,null,null,null,null,"Lyon 6eme"]
[null,"La GUINGUETTE-SUN 07","Discotheque","07-Ardèche","Aubenas",null,null,null,null,null,null,"Lyon 7eme"]
[null,"LA LERMUZE","Discotheque","07-Ardèche","Antraigues sur volane",null,null,null,null,null,null,"Lyon 8eme"]
[null,"Auto Méca","Location de voitures","26-Drome","Chateauneuf sur isere",null,null,null,null,null,null,"Lyon 9eme"]
[null,"SIXT LOCATION DE VOITURES","Location de voitures","26-Drome","Valence",null,null,null,null,null,null,"Mably"]
[null,"GOLF CLUB DU BEAUJOLAIS","GOLF","69-Rhone","Lucenay",null,null,null,null,null,null,"Malataverne"]
[null,"Car'Go","Location de voitures","26-Drome","Valence",null,null,null,null,null,null,"Malaucene"]
[null,"GOLF DE SALVAGNY","Golf","69-Rhone","La tour de salvagny",null,null,null,null,null,null,"Mandelieu la napoule"]
[null,"Carrier Location","Location de voitures","26-Drome","Romans",null,null,null,null,null,null,"Marennes"]
[null,"Clovis Location Echinard et Faure Franchisé indépendant","Location de voitures","26-Drome","St vallier",null,null,null,null,null,null,"Marsanne"]
[null,"GRAND PARC MIRIBEL JONAGE","parc d'attraction","69-Rhone","Vaulx en velin",null,null,null,null,null,null,"Marseille"]
[null,"C.V.I.A","Location de voitures","26-Drome","Crest",null,null,null,null,null,null,"Mazan"]
[null,"Fraikin Locatime","Location de voitures","26-Drome","Portes les valence",null,null,null,null,null,null,"Meaudre"]
[null,"Grim Auto Location","Location de voitures","26-Drome","Valence",null,null,null,null,null,null,"Menerbes"]
[null,"CASINO DE VALS LES BAINS","Casinos","07-Ardèche","Vals les bains",null,null,null,null,null,null,"Menton"]
[null,"FITNESS AVENUE","Clubs de forme","26-Drome","Portes les valence",null,null,null,null,null,null,"Meounes les montrieux"]
[null,"FITNESS EVOLUTION","Clubs de forme","26-Drome","Bourg les valence",null,null,null,null,null,null,"Meylan"]
[null,"FIT'N'FORM","Clubs de forme","26-Drome","Romans",null,null,null,null,null,null,"Meyras"]
[null,"VELLY INSTITUT","Clubs de forme","26-Drome","Valence",null,null,null,null,null,null,"Milhaud"]
[null,"Auberge la Tour de Brisson","Hôtel/Restaurant","07-Ardèche","Sanilhac",null,null,null,null,null,null,"Mions"]
[null,"Hôtel du Tourisme","Hôtel/Restaurant","07-Ardèche","Vallon pont d'arc",null,null,null,null,null,null,"Moirans"]
[null,"Le relais de la poste","Hôtel/Restaurant","07-Ardèche","Grospierres",null,null,null,null,null,null,"Mollans sur ouveze"]
[null,"L'Escarbille","Hôtel/Restaurant","07-Ardèche","St martin d'ardeche",null,null,null,null,null,null,"Montalieu vercieu"]
[null,"Le Clos Charmant","Hôtel/Restaurant","07-Ardèche","Vallon pont d'arc",null,null,null,null,null,null,"Montauban sur l'ouveze"]
[null,"Grand Hôtel des Bains ***","Hôtel/Restaurant","07-Ardèche","Vals les bains",null,null,null,null,null,null,"Montbonnot saint martin"]
[null,"Le Mas de mon Père","Hôtel/Restaurant","07-Ardèche","Saint jean le centenier",null,null,null,null,null,null,"Montboucher sur jabron"]
[null,"Grand Hôtel de Lyon ***","Hôtel/Restaurant","07-Ardèche","Vals les bains",null,null,null,null,null,null,"Monteils"]
[null,"Hôtel Restaurant des Marronniers **","Hôtel/Restaurant","07-Ardèche","Thueyts",null,null,null,null,null,null,"Montelimar"]
[null,"Douce France **","Hôtel/Restaurant","07-Ardèche","Saint alban auriolles",null,null,null,null,null,null,"Montfavet"]
[null,"Hôtel des Persèdes","Hôtel/Restaurant","07-Ardèche","Lavilledieu",null,null,null,null,null,null,"Montrevel"]
[null,"Hôtel Les Mimosas **","Hôtel","07-Ardèche","St martin d'ardeche",null,null,null,null,null,null,"Montrond les bains"]
[null,"Hôtel Restaurant La Falaise","Hôtel/Restaurant","07-Ardèche","Vogüe",null,null,null,null,null,null,"Morestel"]
[null,"Les Clos des Bruyères **","Hôtel/Restaurant","07-Ardèche","Vallon pont d'arc",null,null,null,null,null,null,"Mormoiron"]
[null,"Le Jardin **","Hôtel/Restaurant","07-Ardèche","St marcel d'ardeche",null,null,null,null,null,null,"Mougins"]
[null,"Le Bouffadou","Hôtel/Restaurant","07-Ardèche","Ajoux",null,null,null,null,null,null,"Nans les pins"]
[null,"Hôtel-Restaurant Le Sarrazin","Hôtel/Restaurant","07-Ardèche","Orgnac   l'aven",null,null,null,null,null,null,"Nice"]
[null,"CLUB GAMBETTA","Clubs de forme","26-Drome","Bourg les valence",null,null,null,null,null,null,"Nyons"]
[null,"ESPACE FORM'","Clubs de forme","26-Drome","Crest",null,null,null,null,null,null,"Ollioules"]
[null,"ALLIGATOR CENTER","Clubs de forme","26-Drome","Romans",null,null,null,null,null,null,"Orange"]
[null,"CENTRE DE REMISE EN FORME JOUVE","Clubs de forme","26-Drome","Romans",null,null,null,null,null,null,"Orgnac   l'aven"]
[null,"CENTRE EQUINOXE","Clubs de forme","26-Drome","Romans",null,null,null,null,null,null,"Paris 8eme"]
[null,"ALFAGYM","Clubs de forme","07-Ardèche","Privas",null,null,null,null,null,null,"Peaugres"]
[null,"BODY FORM","Clubs de forme","07-Ardèche","Roiffieux",null,null,null,null,null,null,"Pertuis en provence"]
[null,"KINTHEA","Clubs de forme","07-Ardèche","Aubenas",null,null,null,null,null,null,"Peyrat le chateau"]
[null,"FITNESS' CLUB","Clubs de forme","07-Ardèche","Saint peray",null,null,null,null,null,null,"Pierrelatte"]
[null,"Alizéa **","Hôtel","84-Vaucluse","Avignon",null,null,null,null,null,null,"Plaisians"]
[null,"AUBERGE DE CASSAGNE ****","Hôtel/Restaurant","84-Vaucluse","Avignon",null,null,null,null,null,null,"Plan de campagne"]
[null,"Avignon Grand Hôtel ****","Hôtel/Restaurant","84-Vaucluse","Avignon",null,null,null,null,null,null,"Poet laval"]
[null,"Best Western Hôtel du Lavarin","Hôtel/Restaurant","84-Vaucluse","Avignon",null,null,null,null,null,null,"Pont de l'isere"]
[null,"Best Western Hôtel La Magnaneraie ****","Hôtel/Restaurant","84-Vaucluse","Avignon",null,null,null,null,null,null,"Pont en royans"]
[null,"Les cèdres","Hôtel/Restaurant","84-Vaucluse","Villeneuve les avignon",null,null,null,null,null,null,"Port grimaud"]
[null,"Hôtel Clarion Cloître Saint Louis ****","Hôtel/Restaurant","84-Vaucluse","Avignon",null,null,null,null,null,null,"Portes les valence"]
[null,"Hôtel Danieli **","Hôtel/Restaurant","84-Vaucluse","Avignon",null,null,null,null,null,null,"Pourrieres"]
[null,"Kyriad Palais des Papes","Hôtel","84-Vaucluse","Avignon",null,null,null,null,null,null,"Privas"]
[null,"MAGIQUE","Discotheque","38-Isère","Fontaine",null,null,null,null,null,null,"Pusignan"]
[null,"Hertz France","Location de voitures","26-Drome","Bourg les valence",null,null,null,null,null,null,"Quincie en beaujolais"]
[null,"NUMBER ONE","Discotheque","38-Isère","Fontanil cornillon",null,null,null,null,null,null,"Quincieux"]
[null,"DRAC OUEST","Discotheque","38-Isère","Fontaine",null,null,null,null,null,null,"Ramatuelle"]
[null,"JAME'S DEAN CAFE","Discotheque","38-Isère","Grenoble",null,null,null,null,null,null,"Rayol canadel sur mer"]
[null,"Hertz France","Location de voitures","26-Drome","Alixan",null,null,null,null,null,null,"Richerenches"]
[null,"LE VIEUX MANOIR","Discotheque","38-Isère","Grenoble",null,null,null,null,null,null,"Roanne"]
[null,"SYSTEM","Discotheque","38-Isère","Grenoble",null,null,null,null,null,null,"Rochegude"]
[null,"Hertz France","Location de voitures","26-Drome","Valence",null,null,null,null,null,null,"Rochepaule"]
[null,"SYXTY'S","Discotheque","38-Isère","Chamrousse",null,null,null,null,null,null,"Rognac"]
[null,"AMBIANCE CAFE","Discotheque","38-Isère","Grenoble",null,null,null,null,null,null,"Roiffieux"]
[null,"Hertz BPA (SA) Franchisé indépendant Agence de Montélimar","Location de voitures","26-Drome","Montelimar",null,null,null,null,null,null,"Romaneche thorins"]
[null,"Hertz BPA (SA) Franchisé indépendant à Pierrelatte Dépot garage Peugeot","Location de voitures","26-Drome","Pierrelatte",null,null,null,null,null,null,"Romans"]
[null,"Hertz BPA (SA) Franchisé indépendant à Valréas Dépôt chez garage Peugeot","Location de voitures","84-Vaucluse","Valreas",null,null,null,null,null,null,"Ronno"]
[null,"Car'Go Central Garage Frey Agent indépendant","Location de voitures","26-Drome","Cliousclat",null,null,null,null,null,null,"Roquebrune sur argens"]
[null,"Loc 7","Location de voitures","26-Drome","Valence",null,null,null,null,null,null,"Rove"]
[null,"Loc 7","Location de voitures","26-Drome","Bourg de peage",null,null,null,null,null,null,"Saint agreve"]
[null,"G.D.A","Discotheque","38-Isère","Bourgoin jallieu",null,null,null,null,null,null,"Saint alban auriolles"]
[null,"LE SAINT TROP-LE COMIX","Discotheque","38-Isère","La balme les grottes",null,null,null,null,null,null,"Saint alban de roche"]
[null,"Avis Location de voitures et utilitaires","Location de voitures","26-Drome","St marcel les valence",null,null,null,null,null,null,"Saint antoine l'abbaye"]
[null,"Avis Location de voitures","Location de voitures","26-Drome","Valence",null,null,null,null,null,null,"Saint aygulf"]
[null,"Avis Location de voitures","Location de voitures","26-Drome","St marcel les valence",null,null,null,null,null,null,"Saint cannat"]
[null,"LE TANGO","Discotheque","38-Isère","Echirolles",null,null,null,null,null,null,"Saint cezaire sur siagne"]
[null,"Avis Location de voitures et utilitaires","Location de voitures","26-Drome","Montelimar",null,null,null,null,null,null,"Saint christol"]
[null,"L'EPSILON","Discotheque","38-Isère","Izeron",null,null,null,null,null,null,"Saint cyprien"]
[null,"Avis Location de voitures","Location de voitures","26-Drome","Montelimar",null,null,null,null,null,null,"Saint cyr sur mer"]
[null,"LIQUID","Discotheque","38-Isère","Grenoble",null,null,null,null,null,null,"Saint desirat"]
[null,"L'OPERA","Discotheque","38-Isère","Les deux alpes",null,null,null,null,null,null,"Saint didier"]
[null,"SCOTCH CLUB","Discotheque","38-Isère","Brie et angonnes",null,null,null,null,null,null,"Saint donat sur herbasse"]
[null,"AB Location","Location de voitures","26-Drome","Crest",null,null,null,null,null,null,"Saint etienne"]
[null,"ADA D.Location","Location de voitures","26-Drome","Valence",null,null,null,null,null,null,"Saint ismier"]
[null,"ADA Location","Location de voitures","26-Drome","Montelimar",null,null,null,null,null,null,"Saint jean d'ardieres"]
[null,"Ada Location","Location de voitures","26-Drome","Pierrelatte",null,null,null,null,null,null,"Saint jean le centenier"]
[null,"Rent a Car MDL Concessionnaire","Location de voitures","26-Drome","Valence",null,null,null,null,null,null,"Saint laurent de chamousset"]
[null,"L.B.L","Location de voitures","26-Drome","Montelimar",null,null,null,null,null,null,"Saint laurent de mure"]
[null,"Auto Méca","Location de voitures","26-Drome","Montelimar",null,null,null,null,null,null,"Saint marcel l'eclaire"]
[null,"Auto Méca","Location de voitures","26-Drome","Valence",null,null,null,null,null,null,"Saint martin d'heres"]
[null,"VERT-HOTEL","Hôtel","84-Vaucluse","Avignon",null,null,null,null,null,null,"Saint martin d'uriage"]
[null,"Hostellerie Les Frênes ****","Hôtel/Restaurant","84-Vaucluse","Montfavet",null,null,null,null,null,null,"Saint martin en haut"]
[null,"HOTEL SAINT GEORGE **","Hôtel","84-Vaucluse","Avignon",null,null,null,null,null,null,"Saint maximin la sainte baume"]
[null,"Hôtel ACACIA","Hôtel","84-Vaucluse","Le pontet",null,null,null,null,null,null,"Saint michel les portes"]
[null,"Régina","Hôtel","84-Vaucluse","Avignon",null,null,null,null,null,null,"Saint nizier du moucherotte"]
[null,"La Villa ***","Hôtel","84-Vaucluse","Avignon",null,null,null,null,null,null,"Saint paul"]
[null,"Bonsai Hotel *","Hôtel","84-Vaucluse","Avignon",null,null,null,null,null,null,"Saint paul les monestier"]
[null,"Roques ***","Hôtel","30-Gard","Les angles",null,null,null,null,null,null,"Saint paul trois chateaux"]
[null,"Le Magnan","Hôtel/Restaurant","84-Vaucluse","Avignon",null,null,null,null,null,null,"Saint peray"]
[null,"Le Louvre","Hôtel/Restaurant","84-Vaucluse","Orange",null,null,null,null,null,null,"Saint pierre d'allevard"]
[null,"Campanile Orange","Hôtel/Restaurant","84-Vaucluse","Orange",null,null,null,null,null,null,"Saint pierre de chandieu"]
[null,"Les Bories","Hôtel/Restaurant","84-Vaucluse","Gordes",null,null,null,null,null,null,"Saint pierre la palud"]
[null,"Le Mas de la Senancole","Hôtel/Restaurant","84-Vaucluse","Gordes",null,null,null,null,null,null,"Saint priest"]
[null,"Domaine de la Petite Isle","Hôtel/Restaurant","84-Vaucluse","L'isle sur la sorgue",null,null,null,null,null,null,"Saint quentin fallavier"]
[null,"Hôtel du Fiacre","Hôtel","84-Vaucluse","Carpentras",null,null,null,null,null,null,"Saint raphael"]
[null,"Inter Hotel Du Parc","Hôtel","84-Vaucluse","Cavaillon",null,null,null,null,null,null,"Saint remeze"]
[null,"Arcantis Le Lavandin","Hôtel/Restaurant","84-Vaucluse","Saint christol",null,null,null,null,null,null,"Saint romain en gal"]
[null,"Residence Provence Country Club ***","Hôtel","84-Vaucluse","Orange",null,null,null,null,null,null,"Saint thomas en royans"]
[null,"Les Agassins","Hôtel/Restaurant","84-Vaucluse","Le pontet",null,null,null,null,null,null,"Saint tropez"]
[null,"FASTHOTEL","Hôtel/Restaurant","84-Vaucluse","Le pontet",null,null,null,null,null,null,"Sainte foy les lyon"]
[null,"LA FETE","Discotheque","38-Isère","Grenoble",null,null,null,null,null,null,"Sainte helene sur isere"]
[null,"LA GAMBADE","Discotheque","38-Isère","Les sept laux prapoutel",null,null,null,null,null,null,"Sainte maxime"]
[null,"L'ACTUEL RAÏ","Discotheque","38-Isère","Grenoble",null,null,null,null,null,null,"Sainte paule"]
[null,"L'AVALANCHE","Discotheque","38-Isère","Les deux alpes",null,null,null,null,null,null,"Salernes"]
[null,"LE CHEVAL DE FER","Discotheque","38-Isère","Meaudre",null,null,null,null,null,null,"Salon de provence"]
[null,"LE CLUB","Discotheque","38-Isère","Grenoble",null,null,null,null,null,null,"Sampzon"]
[null,"Campanile","Hôtel/Restaurant","84-Vaucluse","Bollene",null,null,null,null,null,null,"Sanary sur mer"]
[null,"LE GEORGES V","Discotheque","38-Isère","Grenoble",null,null,null,null,null,null,"Sancerre"]
[null,"LE K'DOC","Discotheque","38-Isère","Grenoble",null,null,null,null,null,null,"Sanilhac"]
[null,"LE MURPHY'S","Discotheque","38-Isère","Bourgoin jallieu",null,null,null,null,null,null,"Sarcey"]
[null,"Hôtel Etap","Hôtel","84-Vaucluse","Bollene",null,null,null,null,null,null,"Sassenage"]
[null,"LE PARADISE","Discotheque","38-Isère","Saint alban de roche",null,null,null,null,null,null,"Sathonay camp"]
[null,"Hôtel Formule 1","Hôtel","84-Vaucluse","Bollene",null,null,null,null,null,null,"Satolas et bonce"]
[null,"LE PHOENIX","Discotheque","38-Isère","Meylan",null,null,null,null,null,null,"Saumane de vaucluse"]
[null,"STAFF NIGHT LE NAOS","Discotheque","38-Isère","Grenoble",null,null,null,null,null,null,"Sausset les pins"]
[null,"LA CHOUE","Discotheque","38-Isère","Saint martin d'uriage",null,null,null,null,null,null,"Sauzet"]
[null,"La Bastide de Capelongue","Hôtel/Restaurant","84-Vaucluse","Bonnieux",null,null,null,null,null,null,"Septeme"]
[null,"JMD","Discotheque","38-Isère","La mure d'isere",null,null,null,null,null,null,"Serignan du comtat"]
[null,"LA CASA","Discotheque","38-Isère","Les deux alpes",null,null,null,null,null,null,"Seyssins"]
[null,"Les 3 Colombes","Hôtel/Restaurant","84-Vaucluse","Saint didier",null,null,null,null,null,null,"Siecq"]
[null,"BAOBAB","Discotheque","38-Isère","Sassenage",null,null,null,null,null,null,"Signes"]
[null,"LE CESAR PALACE","Discotheque","38-Isère","Grenay",null,null,null,null,null,null,"Simard"]
[null,"CHATEAU DE BEAUVOIR","Discotheque","38-Isère","Beauvoir en royans",null,null,null,null,null,null,"Six fours les plages"]
[null,"DISCOTHEQUE LES CAVES DE l'ALPE","Discotheque","38-Isère","Alpe d'huez",null,null,null,null,null,null,"Solaize"]
[null,"ETAP HOTEL Cavaillon","Hôtel","84-Vaucluse","Cavaillon",null,null,null,null,null,null,"Sollies pont"]
[null,"Discothèque l'Evidance","Discotheque","38-Isère","Allevard",null,null,null,null,null,null,"Sorgues"]
[null,"Ibis Luberon","Hôtel/Restaurant","84-Vaucluse","Cavaillon",null,null,null,null,null,null,"St chamond"]
[null,"DOTTY NIGHT","Discotheque","38-Isère","Grenoble",null,null,null,null,null,null,"St egreve"]
[null,"Relais Mercure - Les portes du Lubéron","Hôtel/Restaurant","84-Vaucluse","Cavaillon",null,null,null,null,null,null,"St marcel d'ardeche"]
[null,"Hostellerie Château Fines Roches","Hôtel/Restaurant","84-Vaucluse","Chateauneuf du pape",null,null,null,null,null,null,"St marcel les valence"]
[null,"Hôtel des Sources","Hôtel/Restaurant","84-Vaucluse","Fontaine de vaucluse",null,null,null,null,null,null,"St martin d'ardeche"]
[null,"HOTEL DU POETE","Hôtel/Restaurant","84-Vaucluse","Fontaine de vaucluse",null,null,null,null,null,null,"St martin de valgalgues"]
[null,"La Bastide de Gordes Spa ****","Hôtel/Restaurant","84-Vaucluse","Gordes",null,null,null,null,null,null,"St martin la plaine"]
[null,"Mas De Cure Bourse","Hôtel/Restaurant","84-Vaucluse","L'isle sur la sorgue",null,null,null,null,null,null,"St nazaire en royans"]
[null,"Château La Roque","Hôtel","84-Vaucluse","La roque sur pernes",null,null,null,null,null,null,"St pierre d'albigny"]
[null,"Campanile","Hôtel/Restaurant","84-Vaucluse","Le pontet",null,null,null,null,null,null,"St pierre de chartreuse"]
[null,"La Bastide Rose","Chambres d'Hôtes","84-Vaucluse","Le thor",null,null,null,null,null,null,"St vallier"]
[null,"Auberge la Fenière","Restaurant","84-Vaucluse","Lourmarin",null,null,null,null,null,null,"Suze la rousse"]
[null,"Le Moulin de Lourmarin","Hôtel/Restaurant","84-Vaucluse","Lourmarin",null,null,null,null,null,null,"Tain l'hermitage"]
[null,"Le Domaine des Tilleuls ***","Hôtel","84-Vaucluse","Malaucene",null,null,null,null,null,null,"Talence"]
[null,"Château de Mazan","Hôtel/Restaurant","84-Vaucluse","Mazan",null,null,null,null,null,null,"Ternay"]
[null,"Le Roy Soleil","Hôtel/Restaurant","84-Vaucluse","Menerbes",null,null,null,null,null,null,"Thueyts"]
[null,"Hôtel Arène","Hôtel","84-Vaucluse","Orange",null,null,null,null,null,null,"Toulon"]
[null,"HOTEL Formule 1","Hôtel","84-Vaucluse","Orange",null,null,null,null,null,null,"Toulouse"]
[null,"Hôtel le Glacier","Hôtel","84-Vaucluse","Orange",null,null,null,null,null,null,"Tournon"]
[null,"ETAP HOTEL","Hôtel","84-Vaucluse","Pertuis en provence",null,null,null,null,null,null,"Tournon sur rhone"]
[null,"COUNTRY CLUB","Vacances","84-Vaucluse","Saumane de vaucluse",null,null,null,null,null,null,"Tourtour"]
[null,"Le Pré du Moulin","Hôtel/Restaurant","84-Vaucluse","Serignan du comtat",null,null,null,null,null,null,"Trets"]
[null,"Formule 1 - Avignon Nord","Hôtel","84-Vaucluse","Sorgues",null,null,null,null,null,null,"Trigance"]
[null,"Novotel Avignon Nord","Hôtel","84-Vaucluse","Sorgues",null,null,null,null,null,null,"Upie"]
[null,"Hôtel du Golf","Hôtel/Restaurant","84-Vaucluse","Vedene",null,null,null,null,null,null,"Usson en forez"]
[null,"La Grangette ***","Hôtel","84-Vaucluse","Velleron",null,null,null,null,null,null,"Vaison la romaine"]
[null,"Hometel du Parc ***","Hôtel/Restaurant","38-Isère","Allevard",null,null,null,null,null,null,"Valaurie"]
[null,"Les Terrasses **","Hôtel/Restaurant","38-Isère","Allevard",null,null,null,null,null,null,"Valberg"]
[null,"Le Panoramic **","Hôtel/Restaurant","38-Isère","Allevard",null,null,null,null,null,null,"Valbonne"]
[null,"Chalet Le Printemps de Juliette","Hôtel/Restaurant","38-Isère","Alpe d'huez",null,null,null,null,null,null,"Valence"]
[null,"Le Chamois","Hôtel","38-Isère","Alpe d'huez",null,null,null,null,null,null,"Vallon pont d'arc"]
[null,"Royal Ours Blanc ****","Hôtel/Restaurant","38-Isère","Alpe d'huez",null,null,null,null,null,null,"Valreas"]
[null,"Le Pic Blanc","Hôtel","38-Isère","Alpe d'huez",null,null,null,null,null,null,"Vals les bains"]
[null,"Les Chalets de l'Altiport ****","Hôtel","38-Isère","Alpe d'huez",null,null,null,null,null,null,"Vaulx en velin"]
[null,"Les Grandes Rousses ***","Hôtel","38-Isère","Alpe d'huez",null,null,null,null,null,null,"Vauvenargues"]
[null,"HOTEL RESTAURANT ALPIN","Hôtel/Restaurant","38-Isère","Besse",null,null,null,null,null,null,"Vedene"]
[null,"Mister Bed City **","Hôtel","38-Isère","Bourgoin jallieu",null,null,null,null,null,null,"Velleron"]
[null,"MIRIPILI","parc d'attraction","38-Isère","Saint antoine l'abbaye",null,null,null,null,null,null,"Vence"]
[null,"BANZAÏ","parc d'attraction","38-Isère","Saint pierre d'allevard",null,null,null,null,null,null,"Venissieux"]
[null,"BOIS FRANCAIS","parc d'attraction","38-Isère","Saint ismier",null,null,null,null,null,null,"Vernoux en vivarais"]
[null,"Chavant ***","Hôtel/Restaurant","38-Isère","Bresson",null,null,null,null,null,null,"Vers pont du gard"]
[null,"Campanile Chanas **","Hôtel/Restaurant","38-Isère","Chanas",null,null,null,null,null,null,"Vesc"]
[null,"Formule 1 Chanas","Hôtel","38-Isère","Chanas",null,null,null,null,null,null,"Vidauban"]
[null,"Hôtel Balladins","Hôtel/Restaurant","38-Isère","Chanas",null,null,null,null,null,null,"Vienne"]
[null,"Hôtel Mercure Chanas **","Hôtel/Restaurant","38-Isère","Chanas",null,null,null,null,null,null,"Vierzon"]
[null,"Campanile Lyon - Chasse-sur-Rhône **","Hôtel/Restaurant","38-Isère","Chasse sur rhone",null,null,null,null,null,null,"Villard de lans"]
[null,"FORMULE 1 - Chasse-sur-Rhône **","Hôtel","38-Isère","Chasse sur rhone",null,null,null,null,null,null,"Villars"]
[null,"CHATEAU DE LA COMMANDERIE ***","Hôtel/Restaurant","38-Isère","Eybens",null,null,null,null,null,null,"Villecroze"]
[null,"Kyriad Eybens **","Hôtel","38-Isère","Eybens",null,null,null,null,null,null,"Villefontaine"]
[null,"Kyriad Grenoble le Fontanil **","Hôtel","38-Isère","Fontanil cornillon",null,null,null,null,null,null,"Villefranche sur saone"]
[null,"HOTEL IBIS **","Hôtel/Restaurant","38-Isère","Gieres",null,null,null,null,null,null,"Villeneuve les avignon"]
[null,"Ugerel Alpexpo ***","Hôtel/Restaurant","38-Isère","Grenoble",null,null,null,null,null,null,"Villeneuve loubet"]
[null,"Citadines Apart'Hotel ***","Hôtel","38-Isère","Grenoble",null,null,null,null,null,null,"Villeurbanne"]
[null,"CITY SUITES ***","Hôtel","38-Isère","Grenoble",null,null,null,null,null,null,"Villotte sur aire"]
[null,"Hotel Alizé *","Hôtel","38-Isère","Grenoble",null,null,null,null,null,null,"Vinsobres"]
[null,"Air Parc-Parcours d'Aventure et Tyrolien","parc d'attraction","38-Isère","Laffrey",null,null,null,null,null,null,"Vitrolles"]
[null,"Amphi Concept","parc d'attraction","38-Isère","Montalieu vercieu",null,null,null,null,null,null,"Voglans"]
[null,"Aventure Parc","parc d'attraction","38-Isère","Autrans",null,null,null,null,null,null,"Vogüe"]
[null,"ADA D.Location","Location de voitures","26-Drome","Valence",null,null,null,null,null,null,"Voiron"]
[null,"SunnyDream","Vacances","06-Alpes Maritimes","Cannes",null,null,null,null,null,null,"Voreppe"]
[null,"BEST WESTERN TERMINUS ***","Hôtel/Restaurant","38-Isère","Grenoble"]
[null,"COMFORT HOTEL RESIDENCE ***","Golf","38-Isère","Grenoble"]
[null,"Le Grand Hôtel ***","Hôtel","38-Isère","Grenoble"]
[null,"GRAND HOTEL MERCURE PRESIDENT ***","Hôtel","38-Isère","Grenoble"]
[null,"HOTEL IBIS GRENOBLE GARE **","Hôtel/Restaurant","38-Isère","Grenoble"]
[null,"Les3Roses ***","Hôtel/Restaurant","38-Isère","Grenoble"]
[null,"HOTEL MERCURE CENTRE ALPOTEL ***","Hôtel","38-Isère","Grenoble"]
[null,"HOTEL PARIS-NICE **","Hôtel","38-Isère","Grenoble"]
[null,"LE JARDIN FERROVIAIRE","parc d'attraction","38-Isère","Chatte"]
[null,"PAINTBALL DES NARCES","parc d'attraction","38-Isère","Meaudre"]
[null,"Parcours Aventure Trieves","parc d'attraction","38-Isère","Saint michel les portes"]
[null,"Randos Quads Nord Isère","parc d'attraction","38-Isère","Morestel"]
[null,"Europcar France","Location de voitures","26-Drome","Alixan"]
[null,"Europcar France agence Bourg les Valence","Location de voitures","26-Drome","Bourg les valence"]
[null,"Europcar France agence Montélimar","Location de voitures","26-Drome","Montelimar"]
[null,"Europcar France","Location de voitures","26-Drome","Pierrelatte"]
[null,"Europcar Garage Rignol Dépositaire","Location de voitures","26-Drome","La motte de galaure"]
[null,"Madinier location","Location de voitures","26-Drome","Albon"]
[null,"National Citer","Location de voitures","26-Drome","Alixan"]
[null,"Point Car Go Garage Cordeil Franchisé indépendant","Location de voitures","26-Drome","Pierrelatte"]
[null,"Caves et Distillerie de la Chartreuse","Visite/Loisir","38-Isère","Voiron"]
[null,"Park Hôtel Grenoble","Hôtel/Restaurant","38-Isère","Grenoble"]
[null,"PATRICK HOTEL INTERHOTEL","Hôtel","38-Isère","Grenoble"]
[null,"Splendid Hôtel **","Hôtel","38-Isère","Grenoble"]
[null,"Ibis Grenoble Centre","Hôtel/Restaurant","38-Isère","Grenoble"]
[null,"Novotel Grenoble Centre ***","Hôtel","38-Isère","Grenoble"]
[null,"Résidence Marie Curie","Hôtel","38-Isère","Grenoble"]
[null,"Tulip Inn Hotel Angleterre ***","Hôtel","38-Isère","Grenoble"]
[null,"HOTEL GRILL CAMPANILE **","Hôtel/Restaurant","38-Isère","L'isle d'abeau"]
[null,"Hôtel Première Classe","Hôtel","38-Isère","L'isle d'abeau"]
[null,"Murtel","Hôtel","38-Isère","La mure"]
[null,"Hôtel Le Relais de La Tour ***","Hôtel/Restaurant","38-Isère","La tour du pin"]
[null,"ANIMODOU","parc d'attraction","26-Drome","Saint donat sur herbasse"]
[null,"Chalet Hotel Mounier ***","Hôtel","38-Isère","Les deux alpes"]
[null,"WALIBI RHONE ALPES","parc d'attraction","38-Isère","Les avenieres"]
[null,"La Farandole ****","Hôtel","38-Isère","Les deux alpes"]
[null,"LA MARIANDE ***","Hôtel/Restaurant","38-Isère","Les deux alpes"]
[null,"HOTEL RESTAURANT MERCURE ***","Hôtel/Restaurant","38-Isère","Les deux alpes"]
[null,"La Soupière **","Hôtel/Restaurant","38-Isère","Meylan"]
[null,"Mercure Grenoble Meylan ***","Hôtel/Restaurant","38-Isère","Meylan"]
[null,"Parcours Aventure de Saint Nizier","parc d'attraction","38-Isère","Saint nizier du moucherotte"]
[null,"LOISIRS AVENTURE","parc d'attraction","38-Isère","Septeme"]
[null,"TOUROPARC ZOO","parc d'attraction","71-Saone et Loire","Romaneche thorins"]
[null,"LES ACROBOIS","parc d'attraction","42-Loire","La versanne"]
[null,"ASTRONEF","parc d'attraction","42-Loire","Saint etienne"]
[null,"Campanile Moirans-Voreppe **","Hôtel/Restaurant","38-Isère","Moirans"]
[null,"Hôtel Balladins Moirans","Hôtel","38-Isère","Moirans"]
[null,"Au Sans Souci","Hôtel/Restaurant","38-Isère","Saint paul les monestier"]
[null,"Hôtel Balladins Montbonnot Express","Hôtel","38-Isère","Montbonnot saint martin"]
[null,"Campanile Saint-Egrève **","Hôtel/Restaurant","38-Isère","St egreve"]
[null,"LE MAS D'ARTIGNY ****","Hôtel/Restaurant","06-Alpes Maritimes","Saint paul"]
[null,"LOUXOR THALASPA ***","Hôtel","06-Alpes Maritimes","Cannes"]
[null,"NYMPHEA SPA","Saunas / Hammams","06-Alpes Maritimes","Nice"]
[null,"Espace Loisirs Karting","Loisir/Sport","30-Gard","Beaucaire"]
[null,"HAMMAM EL BARRAKA","Saunas / Hammams","06-Alpes Maritimes","Cannes"]
[null,"LES BAINS DOUCHES","Saunas / Hammams","06-Alpes Maritimes","Nice"]
[null,"SAUNA CHEZ CHRISTIANE","Saunas / Hammams","06-Alpes Maritimes","Nice"]
[null,"SAUNA DU CHATEAU","Saunas / Hammams","06-Alpes Maritimes","Nice"]
[null,"SAUNA LE 7","Saunas / Hammams","06-Alpes Maritimes","Nice"]
[null,"AZUR SAUNA CLUB","Saunas / Hammams","06-Alpes Maritimes","Nice"]
[null,"HAMMAM EDEN","Saunas / Hammams","06-Alpes Maritimes","Nice"]
[null,"LA BASTIDE DE SAINT TROPEZ ****","Hôtel/Restaurant","83-Var","Saint tropez"]
[null,"LA BASTIDE ROUGE","Hôtel","83-Var","Saint tropez"]
[null,"LA MISTRALEE ****","Hôtel/Restaurant","83-Var","Saint tropez"]
[null,"Le Charmy","Restaurant","69-Rhone","Saint pierre de chandieu"]
[null,"AUBERGE DE SAVOYE","Restaurant","69-Rhone","Saint pierre de chandieu"]
[null,"CHEZ MARTINE","Restaurant","69-Rhone","Saint pierre de chandieu"]
[null,"LE SAINT JE","Restaurant","69-Rhone","Saint pierre de chandieu"]
[null,"LA BONNE MINE","Restaurant","69-Rhone","Saint pierre la palud"]
[null,"LE SAINT PIERRE","Restaurant","69-Rhone","Saint pierre la palud"]
[null,"LA MAGIE DES AUTOMATES","Visite/Loisir","38-Isère","Lans en vercors"]
[null,"AU PELICAN","Restaurant","69-Rhone","Saint priest"]
[null,"FLUNCH","Restaurant","69-Rhone","Saint priest"]
[null,"L'ESTANQUET","Restaurant","69-Rhone","Saint priest"]
[null,"LE COMPTOIR DE MAITRE KANTER","Restaurant","69-Rhone","Saint priest"]
[null,"LE CRYSTAL","Restaurant","69-Rhone","Saint priest"]
[null,"LE MARYLENE","Restaurant","69-Rhone","Saint priest"]
[null,"LE MILLENAIRE","Restaurant","69-Rhone","Saint priest"]
[null,"LE NATHY","Restaurant","69-Rhone","Saint priest"]
[null,"LE PORTIQUE","Restaurant","69-Rhone","Saint priest"]
[null,"LE ROMARIN","Restaurant","69-Rhone","Saint priest"]
[null,"LE TAPAS","Restaurant","69-Rhone","Saint priest"]
[null,"Majestic Body","Clubs de forme","69-Rhone","Venissieux"]
[null,"Maxi Forme +","Clubs de forme","69-Rhone","Genas"]
[null,"New York Health Club","Clubs de forme","69-Rhone","Champagne au mont d'or"]
[null,"Olympe 7","Clubs de forme","69-Rhone","Lyon 7eme"]
[null,"Pur Pilates","Clubs de forme","69-Rhone","Villeurbanne"]
[null,"Remodeligne","Clubs de forme","69-Rhone","Ecully"]
[null,"Sport Attitude","Clubs de forme","69-Rhone","Lyon 9eme"]
[null,"CUISINE DE LA PLAINE","Restaurant","69-Rhone","Sainte foy les lyon"]
[null,"LARES D'AIME","Restaurant","69-Rhone","Sainte foy les lyon"]
[null,"LE PETIT FIDESIEN","Restaurant","69-Rhone","Sainte foy les lyon"]
[null,"LE POT DES GONES","Restaurant","69-Rhone","Sainte foy les lyon"]
[null,"AUBERGE CHATOUX FLEURI","Restaurant","69-Rhone","Sainte paule"]
[null,"LES MARONNIERS","Restaurant","69-Rhone","Sarcey"]
[null,"CHEZ ZOUZOU","Restaurant","69-Rhone","Sathonay camp"]
[null,"LE 32","Restaurant","69-Rhone","Sathonay camp"]
[null,"LE PETIT HAVRE LE BOIS JOLAN","Restaurant","69-Rhone","Sathonay camp"]
[null,"LE TERMINAL","Restaurant","69-Rhone","Sathonay camp"]
[null,"Hôtel Cézanne","Hôtel","06-Alpes Maritimes","Cannes"]
[null,"CRISTAL","Hôtel/Restaurant","06-Alpes Maritimes","Cannes"]
[null,"Le Flore","Restaurant","31-Haute Garonne","Toulouse"]
[null,"Hotel du Taur **","Hôtel","31-Haute Garonne","Toulouse"]
[null,"Croisette Beach Hotel","Hôtel","06-Alpes Maritimes","Cannes"]
[null,"Eden Hotel","Hôtel","06-Alpes Maritimes","Cannes"]
[null,"Hôtel des Beaux Arts ***","Hôtel","31-Haute Garonne","Toulouse"]
[null,"Hôtel Gray d'Albion","Hôtel","06-Alpes Maritimes","Cannes"]
[null,"ARIANE","Hôtel","31-Haute Garonne","Toulouse"]
[null,"HOTEL DE FRANCE","Hôtel","31-Haute Garonne","Toulouse"]
[null,"CROWNE PLAZA","Hôtel","31-Haute Garonne","Toulouse"]
[null,"LE DAUPHIN PORQUEROLLAIS","Restaurant","83-Var","Hyeres les palmiers"]
[null,"LE GRAND LARGE","Restaurant","83-Var","Hyeres les palmiers"]
[null,"LE HAUT DU PAVE","Restaurant","83-Var","Hyeres les palmiers"]
[null,"Parc Grimpozarbres","parc d'attraction","13-Bouches du Rhone","Marseille"]
[null,"Cabaret Le Beau Site","Cabarets et music halls","83-Var","Le castellet"]
[null,"Esterel Ranch","Centres equestres, equitation","83-Var","Agay"]
[null,"GKL Karting","Loisir/Sport","83-Var","Grimaud"]
[null,"LES FOLIE'S TERRIBLES","Cabarets et music halls","83-Var","Saint cyr sur mer"]
[null,"Le Cochon Rose","Cabarets et music halls","83-Var","Toulon"]
[null,"Le Domaine du Château de Taulane","Hôtel/Restaurant","83-Var","La martre"]
[null,"Provence Aventure","parc d'attraction","83-Var","Vidauban"]
[null,"LE GRAND LARGE","Restaurant","83-Var","Le pradet"]
[null,"LE LOTUS","Restaurant","83-Var","Le pradet"]
[null,"LE MEDAILLON","Restaurant","83-Var","Le pradet"]
[null,"LE VOLCAN DE CHINE","Restaurant","83-Var","Le pradet"]
[null,"PLEIN SUD","Restaurant","83-Var","Le pradet"]
[null,"BISTRO DES QUATRE SAISONS","Bar/Café","83-Var","Les arcs"]
[null,"CHEZ CARLOS","Restaurant","83-Var","Les arcs"]
[null,"LA PAILLOTTE","Restaurant","83-Var","Les arcs"]
[null,"LE CABANON","Restaurant","83-Var","Les arcs"]
[null,"LE GRILLADIN","Restaurant","83-Var","Les arcs"]
[null,"LE LOGIS DU GUETTEUR","Restaurant","83-Var","Les arcs"]
[null,"RESTAURANT DU PONT D'ARGENS","Restaurant","83-Var","Les arcs"]
[null,"LE BACCHUS GOURMAND","Restaurant","83-Var","Les arcs"]
[null,"ROQUE ROUSSE","Restaurant","83-Var","Les arcs"]
[null,"SAVEURS D'ASIE","Restaurant","83-Var","Les arcs"]
[null,"Bruno","Hôtel/Restaurant","83-Var","Lorgues"]
[null,"Terres de Truffes","Id2Boutiques","06-Alpes Maritimes","Nice"]
[null,"Terres de Truffes","Id2Boutiques","75-Paris","Paris 8eme"]
[null,"RESTAURANT DE L'IRLANDAIS","Restaurant","06-Alpes Maritimes","Valberg"]
[null,"Auberge de la Source","Restaurant","06-Alpes Maritimes","Valbonne"]
[null,"LA TABLE DE PIMPRENELLE","Restaurant","06-Alpes Maritimes","Valbonne"]
[null,"Le Restaurant d'Adèle","Restaurant","06-Alpes Maritimes","Valbonne"]
[null,"Croisières Marseille Calanques","Visite/Loisir","13-Bouches du Rhone","Marseille"]
[null,"AUBERGE PROVENCALE","Restaurant","06-Alpes Maritimes","Valbonne"]
[null,"L'ELYSEE CARNOT","Restaurant","06-Alpes Maritimes","Valbonne"]
[null,"LA FONTAINE AUX VINS","Restaurant","06-Alpes Maritimes","Valbonne"]
[null,"LE BOIS DORE","Restaurant","06-Alpes Maritimes","Valbonne"]
[null,"Le Central Park","Restaurant","06-Alpes Maritimes","Valbonne"]
[null,"LE COIN DE LA RUE","Restaurant","06-Alpes Maritimes","Valbonne"]
[null,"LE COMPTOIR DU SUD","Restaurant","06-Alpes Maritimes","Valbonne"]
[null,"LES TROIS BONHEURS","Restaurant","06-Alpes Maritimes","Valbonne"]
[null,"RESTAURANT DU MOULIN DES MOINES","Restaurant","06-Alpes Maritimes","Valbonne"]
[null,"LE CADRAN SOLAIRE","Restaurant","06-Alpes Maritimes","Valbonne"]
[null,"LE MONTPARNASSE","Restaurant","06-Alpes Maritimes","Valbonne"]
[null,"Hôtel Balladins Saint-Egrève *","Hôtel","38-Isère","St egreve"]
[null,"HOTEL GRIL CAMPANILE **","Hôtel/Restaurant","38-Isère","Saint martin d'heres"]
[null,"LA ROSELIÈRE **","Hôtel/Restaurant","38-Isère","Saint quentin fallavier"]
[null,"LES RELAIS BLEUS **","Hôtel/Restaurant","38-Isère","Saint quentin fallavier"]
[null,"HOTEL GRIL CAMPANILE **","Hôtel/Restaurant","38-Isère","Seyssins"]
[null,"Kyriad Seyssins **","Hôtel","38-Isère","Seyssins"]
[null,"VENTOUX AVENTURE","parc d'attraction","84-Vaucluse","Mormoiron"]
[null,"FUN PARC AVENTURE","parc d'attraction","84-Vaucluse","Richerenches"]
[null,"Le Musée de l'eau","Visite/Loisir","38-Isère","Pont en royans"]
[null,"Aven Grotte de Marzal","Visite/Loisir","07-Ardèche","Saint remeze"]
[null,"Bonsaï Etape Vienne","Hôtel","38-Isère","Vienne"]
[null,"HOTEL IBIS **","Hôtel/Restaurant","38-Isère","Vienne"]
[null,"PYRAMIDE F. POINT","Hôtel","38-Isère","Vienne"]
[null,"Best Western Grand Hotel De Paris ***","Hôtel/Restaurant","38-Isère","Villard de lans"]
[null,"LES BRUYERES **","Hôtel/Restaurant","38-Isère","Villard de lans"]
[null,"La Taïga **","Hôtel/Restaurant","38-Isère","Villard de lans"]
[null,"Musée de la Lavande","Visite/Loisir","07-Ardèche","Saint remeze"]
[null,"Aven d'Orgnac","Visite/Loisir","07-Ardèche","Orgnac   l'aven"]
[null,"Grottes et site de Choranche","Visite/Loisir","38-Isère","Choranche"]
[null,"Musée de la Grande Chartreuse","Visite/Loisir","38-Isère","St pierre de chartreuse"]
[null,"LASER GAME EVOLUTION PLAN DE CAMPAGNE","Loisir/Sport","13-Bouches du Rhone","Les pennes mirabeau"]
[null,"Musée La Tanière Enchantée","Parc animalier","38-Isère","Villard de lans"]
[null,"HOTEL MERCURE ***","Hôtel","38-Isère","Villefontaine"]
[null,"Hôtel Kyriad Voiron Chartreuse **","Hôtel","38-Isère","Voiron"]
[null,"Le Chaudron d'Or","Visite/Loisir","26-Drome","Montelimar"]
[null,"Ravioles Mere Maury","Epiceries fines","26-Drome","Romans"]
[null,"Cave du Liboreau","Id2Boutiques","17-Charente Maritime","Siecq"]
[null,"Tresse dorée","Boulangeries - Patisseries","85-Vendée","La roche sur yon"]
[null,"Maison du Pays de Vierzon","Restaurant","18-Cher","Vierzon"]
[null,"Auberge du Colombier","Restaurant","55-Meuse","Villotte sur aire"]
[null,"La ferme du bois brulé","Produits Bio","71-Saone et Loire","Simard"]
[null,"L'ESCALE","Restaurant","87-Haute Vienne","Peyrat le chateau"]
[null,"Centre Animation Jeunesse","Loisirs - Enfants","33-Gironde","Talence"]
[null,"Dubois Boulay","Produits Bio","18-Cher","Sancerre"]
[null,"HOTEL ETAP HOTEL","Hôtel","38-Isère","Voreppe"]
[null,"NOVOTEL VOREPPE ***","Hôtel/Restaurant","38-Isère","Voreppe"]
[null,"NOVOTEL ST ETIENNE AEROPORT","Hôtel/Restaurant","42-Loire","Andrezieux boutheon"]
[null,"Hôtel Balladins","Hôtel","42-Loire","La ricamarie"]
[null,"VILLAGE DES AUTOMATES","parc d'attraction","13-Bouches du Rhone","Saint cannat"]
[null,"Indian Forest Sud Accrobranche","parc d'attraction","13-Bouches du Rhone","Bouc bel air"]
[null,"Coudou Parc Vivez l'Aventure","parc d'attraction","83-Var","Six fours les plages"]
[null,"Parc Zoologique de Fréjus","Parc animalier","83-Var","Frejus"]
[null,"Aoubre L'Aventure-Nature","parc d'attraction","83-Var","Flassans sur issole"]
[null,"Funnyland Parc","parc d'attraction","83-Var","La seyne sur mer"]
[null,"Formule 1 Roanne","Hôtel","42-Loire","Le coteau"]
[null,"IBIS ROANNE","Hôtel/Restaurant","42-Loire","Le coteau"]
[null,"HELIOS","Hôtel/Restaurant","42-Loire","Mably"]
[null,"Hostellerie La Poularde ***","Hôtel/Restaurant","42-Loire","Montrond les bains"]
[null,"Hôtel du Domaine de Champlong **","Hôtel/Restaurant","42-Loire","Roanne"]
[null,"CAMPANILE ROANNE","Hôtel/Restaurant","42-Loire","Roanne"]
[null,"HELIOS","Hôtel/Restaurant","42-Loire","Roanne"]
[null,"Musée de L'Alambic","Visite/Loisir","07-Ardèche","Saint desirat"]
[null,"CAMPANILE St Chamond","Hôtel/Restaurant","42-Loire","St chamond"]
[null,"ETAP HOTEL","Hôtel","42-Loire","Saint etienne"]
[null,"IBIS CHATEAUCREUX","Hôtel/Restaurant","42-Loire","Saint etienne"]
[null,"Musée d'Art et d'Industrie","Visite/Loisir","42-Loire","Saint etienne"]
[null,"Les secrets d'Antésite","Visite/Loisir","38-Isère","Voiron"]
[null,"IBIS-NORD LA TERRASSE","Hôtel/Restaurant","42-Loire","Saint etienne"]
[null,"MERCURE","Hôtel/Restaurant","42-Loire","Saint etienne"]
[null,"Espace Zoologique","Parc animalier","42-Loire","St martin la plaine"]
[null,"Hôtel Tenor","Hôtel","42-Loire","Saint etienne"]
[null,"Kyriad","Hôtel","42-Loire","Saint etienne"]
[null,"Résidence Jules Ferry","Hôtel","42-Loire","Saint etienne"]
[null,"Grottes de la Balme","Visite/Loisir","38-Isère","La balme les grottes"]
[null,"HOTEL PREMIERE CLASSE","Hôtel","42-Loire","Villars"]
[null,"Le relais d'Agay **","Hôtel/Restaurant","83-Var","Agay"]
[null,"Résidence Cap Esterel","Hôtel","83-Var","Agay"]
[null,"Bastide du Calalou ***","Hôtel","83-Var","Aups"]
[null,"L'ANE ROUGE","Cabarets et music halls","69-Rhone","Dardilly"]
[null,"Pullman Marseille Palm Beach","Hôtel/Restaurant","13-Bouches du Rhone","Marseille"]
[null,"New Hotel Of Marseille ****","Hôtel/Restaurant","13-Bouches du Rhone","Marseille"]
[null,"Hôtel Apogia ***","Hôtel","06-Alpes Maritimes","Nice"]
[null,"Holiday Inn Marseille ****","Hôtel/Restaurant","13-Bouches du Rhone","Marseille"]
[null,"Le Grand Hôtel - Aups *","Hôtel/Restaurant","83-Var","Aups"]
[null,"Sofitel Marseille Vieux Port*****","Hôtel/Restaurant","13-Bouches du Rhone","Marseille"]
[null,"BEL OMBRA **","Hôtel","83-Var","Bandol"]
[null,"Hôtel de la Baie ***","Hôtel","83-Var","Bandol"]
[null,"Dolce Fregate","Hôtel/Restaurant","83-Var","Bandol"]
[null,"Grand Hôtel des Bains ***","Hôtel","83-Var","Bandol"]
[null,"Hôtel Best Western Soleil et Jardin ****","Hôtel","83-Var","Sanary sur mer"]
[null,"ILE ROUSSE ****","Hôtel","83-Var","Bandol"]
[null,"Key Largo **","Hôtel","83-Var","Bandol"]
[null,"Hôtel de la Plage **","Hôtel","83-Var","Bormes les mimosas"]
[null,"La Garrigue","Hôtel","83-Var","Bormes les mimosas"]
[null,"La Parenthèse **","Hôtel","83-Var","Bormes les mimosas"]
[null,"Hôtel du Golf de Barbaroux","Hôtel","83-Var","Brignoles"]
[null,"Formule 1","Hôtel","83-Var","Brignoles"]
[null,"Ibis Brignoles","Hôtel/Restaurant","83-Var","Brignoles"]
[null,"Les gorges de Pennafort","Hôtel/Restaurant","83-Var","Callas"]
[null,"Babyland","parc d'attraction","30-Gard","Le grau du roi"]
[null,"SITE DU PONT DU GARD","Visite/Loisir","30-Gard","Vers pont du gard"]
[null,"L'Auberge des Mourgues","Hôtel/Restaurant","83-Var","Callian"]
[null,"Le Richiardi","Hôtel/Restaurant","83-Var","Carqueiranne"]
[null,"Hôtel de la Calanque","Hôtel/Restaurant","83-Var","Cavalaire sur mer"]
[null,"Best Western Relais du Font Mourier","Hôtel","83-Var","Cogolin"]
[null,"Karting du Rove","Loisir/Sport","13-Bouches du Rhone","Rove"]
[null,"Karting Indoor Provence","Loisir/Sport","13-Bouches du Rhone","La penne/huveaune"]
[null,"Karting Indoor Provence","Loisir/Sport","13-Bouches du Rhone","Aubagne"]
[null,"Proquad / Land","Loisir/Sport","13-Bouches du Rhone","La penne/huveaune"]
[null,"LES CARAMAGNOLS","Camping/Location","83-Var","Cogolin"]
[null,"La Maison du Monde","Hôtel/Restaurant","83-Var","Cogolin"]
[null,"Le Clemenceau **","Hôtel","83-Var","Cogolin"]
[null,"Le Col de l'Ange **","Hôtel","83-Var","Draguignan"]
[null,"Le Victoria ***","Hôtel","83-Var","Draguignan"]
[null,"LASER QUEST","parc d'attraction","06-Alpes Maritimes","Cannes la bocca"]
[null,"Hôtel Mercure Draguignan ***","Hôtel","83-Var","Draguignan"]
[null,"MARINELAND COTE D'AZUR","parc d'attraction","06-Alpes Maritimes","Antibes"]
[null,"Auberge des Mourgues","Hôtel/Restaurant","83-Var","Fayence"]
[null,"LA VIEILLE BASTIDE","Hôtel/Restaurant","83-Var","Flayosc"]
[null,"Canyon Forest","parc d'attraction","06-Alpes Maritimes","Villeneuve loubet"]
[null,"L’ARENA ***","Hôtel/Restaurant","83-Var","Frejus"]
[null,"Grottes de Saint Cézaire","parc d'attraction","06-Alpes Maritimes","Saint cezaire sur siagne"]
[null,"Tropical Mini-Golf De Robinson","parc d'attraction","06-Alpes Maritimes","Mandelieu la napoule"]
[null,"La Ferme Pédagogique","parc d'attraction","06-Alpes Maritimes","Vence"]
[null,"Labyrinthe","parc d'attraction","06-Alpes Maritimes","Villeneuve loubet"]
[null,"ATHENA MOTEL **","Hôtel","83-Var","Frejus"]
[null,"AUBERGE DES ADRETS ****","Hôtel/Restaurant","83-Var","Frejus"]
[null,"Cap Riviera **","Hôtel","83-Var","Frejus"]
[null,"ETAP HOTEL FREJUS","Hôtel","83-Var","Frejus"]
[null,"ETAP HOTEL Saint Raphäel centre","Hôtel","83-Var","Frejus"]
[null,"CAMPANILE FREJUS","Hôtel/Restaurant","83-Var","Frejus"]
[null,"KYRIAD FREJUS","Hôtel","83-Var","Frejus"]
[null,"Le Flore ** - Fréjus","Hôtel","83-Var","Frejus"]
[null,"Quad Extreme Puissance Kart","Loisir/Sport","13-Bouches du Rhone","Aubagne"]
[null,"Circuit Mistral Kart'One S C Motorsport Dévelopment","Loisir/Sport","13-Bouches du Rhone","Salon de provence"]
[null,"Circuit du Mistral SC dévelopment","Loisir/Sport","13-Bouches du Rhone","Grans"]
[null,"S2C","Loisir/Sport","13-Bouches du Rhone","Aix en provence"]
[null,"Circuit de l'Etang","Loisir/Sport","13-Bouches du Rhone","Rognac"]
[null,"Kart Up","Loisir/Sport","13-Bouches du Rhone","Vitrolles"]
[null,"Kart'In Aix","Loisir/Sport","13-Bouches du Rhone","Aix en provence"]
[null,"Vacanciel L'Orangeraie","Vacances","06-Alpes Maritimes","Menton"]
[null,"Le Mas de Chastelas *****","Hôtel","83-Var","Gassin"]
[null,"Hotel Majestic ****","Hôtel/Restaurant","06-Alpes Maritimes","Cannes"]
[null,"ATHENOPOLIS ***","Hôtel/Restaurant","83-Var","Grimaud"]
[null,"Le Provençal","Hôtel","83-Var","Hyeres les palmiers"]
[null,"Hôtel Masséna ****","Hôtel/Restaurant","06-Alpes Maritimes","Nice"]
[null,"Hôtel Martinez","Hôtel/Restaurant","06-Alpes Maritimes","Cannes"]
[null,"Circuit Automobile du Grand Sambuc","Loisir/Sport","13-Bouches du Rhone","Vauvenargues"]
[null,"Société Nouvelle Circuit du Soleil","Loisir/Sport","13-Bouches du Rhone","Cuges les pins"]
[null,"Karting Vallée de l'Arc","Loisir/Sport","13-Bouches du Rhone","Trets"]
[null,"J.B Emeric","Loisir/Sport","13-Bouches du Rhone","Gemenos"]
[null,"Eurokart","Loisir/Sport","26-Drome","Chateauneuf sur isere"]
[null,"Mistral Kart","Loisir/Sport","26-Drome","Montelimar"]
[null,"Ventoux Adventure","Loisir/Sport","26-Drome","Plaisians"]
[null,"X-Trem Karting","Loisir/Sport","26-Drome","Valence"]
[null,"Auto Glisse 26","Loisir/Sport","26-Drome","Crupies"]
[null,"Centre Tout Terrain","Loisir/Sport","07-Ardèche","Rochepaule"]
[null,"CITOTEL DU SOLEIL **","Hôtel","83-Var","Hyeres les palmiers"]
[null,"HOTEL DE L'EUROPE **","Hôtel","83-Var","Hyeres les palmiers"]
[null,"ETAP HOTEL HYERES","Hôtel","83-Var","Hyeres les palmiers"]
[null,"IBIS ET THALASSO **","Hôtel/Restaurant","83-Var","Hyeres les palmiers"]
[null,"IBIS HYERES CENTRE **","Hôtel/Restaurant","83-Var","Hyeres les palmiers"]
[null,"La Résidence du Provençal","Camping/Location","83-Var","Hyeres les palmiers"]
[null,"LE MEDITERRANEE","Hôtel/Restaurant","83-Var","Hyeres les palmiers"]
[null,"LES PRINTANIERES **","Hôtel/Restaurant","83-Var","Hyeres les palmiers"]
[null,"MERCURE ***","Hôtel","83-Var","Hyeres les palmiers"]
[null,"Hostellerie Bérard ***","Hôtel/Restaurant","83-Var","La cadiere d'azur"]
[null,"Hostellerie de l'Abbaye de la Celle ****","Hôtel/Restaurant","83-Var","La celle"]
[null,"CHATEAU DE VALMER ****","Hôtel/Restaurant","83-Var","La croix valmer"]
[null,"LA BIENVENUE **","Hôtel","83-Var","La croix valmer"]
[null,"LA PINEDE-PLAGE ***","Hôtel/Restaurant","83-Var","La croix valmer"]
[null,"Résidence Hôtelière de la Mer","Hôtel","83-Var","La croix valmer"]
[null,"SOULEIAS ***","Hôtel/Restaurant","83-Var","La croix valmer"]
[null,"Kyriad Toulon la Garde **","Hôtel","83-Var","La garde"]
[null,"Le Longo Mai ***","Hôtel/Restaurant","83-Var","La garde freinet"]
[null,"Les Domaines de Saint Endreol","Hôtel/Restaurant","83-Var","La motte"]
[null,"FORMULE 1","Hôtel","83-Var","La seyne sur mer"]
[null,"IBIS **","Hôtel/Restaurant","83-Var","La seyne sur mer"]
[null,"NOVOTEL ***","Hôtel/Restaurant","83-Var","La seyne sur mer"]
[null,"Hôtel du Castellet *****","Hôtel/Restaurant","83-Var","Le castellet"]
[null,"Le Mas de Causserène **","Hôtel/Restaurant","83-Var","Le cannet des maures"]
[null,"Azur **","Hôtel","83-Var","Le lavandou"]
[null,"Espadon ***","Hôtel","83-Var","Le lavandou"]
[null,"La Bastide **","Hôtel","83-Var","Le lavandou"]
[null,"Le Club de Cavalière ****","Hôtel/Restaurant","83-Var","Le lavandou"]
[null,"Moulin de Mougins ****","Hôtel/Restaurant","06-Alpes Maritimes","Mougins"]
[null,"NOVOTEL","Hôtel/Restaurant","06-Alpes Maritimes","Cannes"]
[null,"ESPRIT SPA","Saunas / Hammams","69-Rhone","Lyon 6eme"]
[null,"GO KAN'","Saunas / Hammams","69-Rhone","Lyon 4eme"]
[null,"Hammam des Emeraudes","Saunas / Hammams","69-Rhone","Lyon 6eme"]
[null,"Hammam la 7ème source","Saunas / Hammams","69-Rhone","Lyon 1er"]
[null,"Hammam Les Naïades","Saunas / Hammams","69-Rhone","Villefranche sur saone"]
[null,"Hamman des Canuts","Saunas / Hammams","69-Rhone","Lyon 4eme"]
[null,"Hamman El Bled","Saunas / Hammams","69-Rhone","Lyon 8eme"]
[null,"Histoire d'Eau","Saunas / Hammams","69-Rhone","Lyon 1er"]
[null,"Cross up","Loisir/Sport","07-Ardèche","Larnas"]
[null,"Karting de Lavilledieu","Loisir/Sport","07-Ardèche","Lavilledieu"]
[null,"Bétancourt Patrice","Loisir/Sport","07-Ardèche","Grospierres"]
[null,"Rando Jeep Ardéche","Loisir/Sport","07-Ardèche","Sampzon"]
[null,"Albert Addesso Organisation","Loisir/Sport","07-Ardèche","Roiffieux"]
[null,"Circuit Aubenas Lanas","Loisir/Sport","07-Ardèche","Lanas"]
[null,"Laumatec","Loisir/Sport","07-Ardèche","Lavilledieu"]
[null,"Les Bains de l'Opéra","Saunas / Hammams","69-Rhone","Lyon 1er"]
[null,"Circuit Du Laquais","Loisir/Sport","38-Isère","Champier"]
[null,"Lyon Plage","Clubs de forme","69-Rhone","Lyon 4eme"]
[null,"Royal SPA","Saunas / Hammams","69-Rhone","Lyon 6eme"]
[null,"Sauna Japonais","Saunas / Hammams","69-Rhone","Lyon 6eme"]
[null,"Cohala","Loisir/Sport","38-Isère","Lans en vercors"]
[null,"Prod'Jet","Loisir/Sport","38-Isère","Montalieu vercieu"]
[null,"Spa Lyon Foch Institut","Saunas / Hammams","69-Rhone","Lyon 6eme"]
[null,"Athlétic Studio II","Clubs de forme","69-Rhone","Brignais"]
[null,"Chrono Kart","Loisir/Sport","38-Isère","Crolles"]
[null,"Hammam Abid","Saunas / Hammams","69-Rhone","Givors"]
[null,"Hammam Cleopatra","Saunas / Hammams","69-Rhone","Villeurbanne"]
[null,"Ecole de conduite sur Glace de Chamrousse","Loisir/Sport","38-Isère","Chamrousse"]
[null,"Espace Gliss","Loisir/Sport","38-Isère","Chamrousse"]
[null,"Feeling Pocket","Loisir/Sport","38-Isère","Morestel"]
[null,"Formule Kart Indoor","Loisir/Sport","38-Isère","Echirolles"]
[null,"L.V.R","Loisir/Sport","38-Isère","Satolas et bonce"]
[null,"RTF 38 Apprieu","Loisir/Sport","38-Isère","Montrevel"]
[null,"Book Compétition","Loisir/Sport","38-Isère","Saint pierre d'allevard"]
[null,"Les Roches ****","Hôtel/Restaurant","83-Var","Le lavandou"]
[null,"Les Sables d'Or","Hôtel/Restaurant","83-Var","Le lavandou"]
[null,"L'Orée du Bois **","Hôtel/Restaurant","83-Var","Le muy"]
[null,"L'Estirado des Adrets **","Hôtel/Restaurant","83-Var","Les adrets de l'esterel"]
[null,"Le Logis du Guetteur ***","Hôtel/Restaurant","83-Var","Les arcs"]
[null,"L'hôtel les calanques **","Hôtel","83-Var","Les issambres"]
[null,"Villa Saint-Elme","Hôtel","83-Var","Les issambres"]
[null,"Performances Drive","Loisir/Sport","42-Loire","Saint cyprien"]
[null,"Château de Berne","Hôtel","83-Var","Lorgues"]
[null,"Aventure Quad 42","Loisir/Sport","42-Loire","Usson en forez"]
[null,"Circuit Léopard","Loisir/Sport","42-Loire","Andrezieux boutheon"]
[null,"Circuit 3A Compétition","Loisir/Sport","42-Loire","Andrezieux boutheon"]
[null,"Château de Nans ***","Hôtel","83-Var","Nans les pins"]
[null,"DOMAINE DE CHATEAUNEUF ****","Hôtel/Restaurant","83-Var","Nans les pins"]
[null,"Quad Nature","Loisir/Sport","42-Loire","Cellieu"]
[null,"Sportive Karting de Villars","Loisir/Sport","42-Loire","Villars"]
[null,"Espace Karting Indoor","Loisir/Sport","73-Savoie","Voglans"]
[null,"Circuit Terre et Bitume","Loisir/Sport","73-Savoie","Sainte helene sur isere"]
[null,"Karting Cisalpino","Loisir/Sport","73-Savoie","Tournon"]
[null,"Mistral Gagnant Evénementiel","Loisir/Sport","73-Savoie","Drumettaz clarafond"]
[null,"Moto Club des Bermudes","Loisir/Sport","73-Savoie","St pierre d'albigny"]
[null,"Quad Organisation","Loisir/Sport","73-Savoie","Le bourget du lac"]
[null,"LE SUFFREN ***","Hôtel","83-Var","Port grimaud"]
[null,"HOSTELLERIE LE BAOU ****","Hôtel/Restaurant","83-Var","Ramatuelle"]
[null,"LA FERME D'AUGUSTIN ***","Hôtel/Restaurant","83-Var","Ramatuelle"]
[null,"Brignoles Karting Loisirs","Loisir/Sport","83-Var","Brignoles"]
[null,"Le Bailli de Suffren ****","Hôtel/Restaurant","83-Var","Rayol canadel sur mer"]
[null,"La Maurette Roquebrune ***","Chambres d'Hôtes","83-Var","Roquebrune sur argens"]
[null,"Résidence Open Saint-Aygulf  ***","Camping/Location","83-Var","Saint aygulf"]
[null,"ETAP HOTEL","Hôtel","83-Var","Saint cyr sur mer"]
[null,"Grand Hôtel des Lecques ***","Hôtel/Restaurant","83-Var","Saint cyr sur mer"]
[null,"LA CORNICHE **","Hôtel","83-Var","Saint cyr sur mer"]
[null,"Hôtel Villa Les Pins **","Hôtel/Restaurant","83-Var","Saint cyr sur mer"]
[null,"Les Bains de Breteuil","Saunas / Hammams","13-Bouches du Rhone","Marseille"]
[null,"VILLA FLORENCE","Saunas / Hammams","13-Bouches du Rhone","Marseille"]
[null,"LES BAINS DU HAREM","Saunas / Hammams","13-Bouches du Rhone","Marseille"]
[null,"INSTITUT DU COURS","Saunas / Hammams","13-Bouches du Rhone","Aix en provence"]
[null,"LA BASTIDE DES BAINS","Saunas / Hammams","13-Bouches du Rhone","Marseille"]
[null,"Hôtel de France ***","Hôtel/Restaurant","83-Var","Saint maximin la sainte baume"]
[null,"AUBERGE PROVENCALE **","Hôtel","83-Var","Saint raphael"]
[null,"Best Western La Marina ***","Hôtel/Restaurant","83-Var","Saint raphael"]
[null,"Golf de Valescure ***","Hôtel/Restaurant","83-Var","Saint raphael"]
[null,"Brise de Mer ***","Hôtel/Restaurant","83-Var","Saint raphael"]
[null,"Hôtel Continental ***","Hôtel","83-Var","Saint raphael"]
[null,"Grimaud Karting Loisir","Loisir/Sport","83-Var","Grimaud"]
[null,"Karting Six Fours","Loisir/Sport","83-Var","Ollioules"]
[null,"Hôtel de Flore ***","Hôtel","83-Var","Saint raphael"]
[null,"Hôtel du Soleil **","Hôtel","83-Var","Saint raphael"]
[null,"Le Thimothée **","Hôtel","83-Var","Saint raphael"]
[null,"San Pedro ***","Hôtel/Restaurant","83-Var","Saint raphael"]
[null,"LES BAINS DES SUD","Saunas / Hammams","13-Bouches du Rhone","Marseille"]
[null,"LES THERMES","Saunas / Hammams","13-Bouches du Rhone","Marseille"]
[null,"VOGUE","Saunas / Hammams","13-Bouches du Rhone","Marseille"]
[null,"CAPITAL FORM","Clubs de forme","13-Bouches du Rhone","Plan de campagne"]
[null,"EN APESANTEUR","Saunas / Hammams","13-Bouches du Rhone","La ciotat"]
[null,"ENERGIE BEAUTE","Saunas / Hammams","13-Bouches du Rhone","Sausset les pins"]
[null,"HAMMAM DES ETOILES","Saunas / Hammams","13-Bouches du Rhone","Aubagne"]
[null,"HAMMAM LES CASCADES","Saunas / Hammams","13-Bouches du Rhone","Gardanne"]
[null,"HAMMAM RAFIK","Saunas / Hammams","13-Bouches du Rhone","Marseille"]
[null,"La Villa Mauresque","Hôtel","83-Var","Saint raphael"]
[null,"Latitudes Golf de l'Estérel ***","Hôtel","83-Var","Saint raphael"]
[null,"Résidence Cap Estérel ***","Camping/Location","83-Var","Saint raphael"]
[null,"BASTIDE DES SALINS","Hôtel","83-Var","Saint tropez"]
[null,"La Passion du Quad","Loisir/Sport","83-Var","Signes"]
[null,"Le Cabanon Enchanté","Loisir/Sport","83-Var","Pourrieres"]
[null,"Oreca","Loisir/Sport","83-Var","Signes"]
[null,"Benkiraï Hotel ****","Hôtel/Restaurant","83-Var","Saint tropez"]
[null,"CHATEAU DE LA MESSARDIERE ****","Hôtel/Restaurant","83-Var","Saint tropez"]
[null,"Potter David","Loisir/Sport","83-Var","Meounes les montrieux"]
[null,"Prestige Karting","Loisir/Sport","83-Var","Le luc"]
[null,"Ranch des Cavières","Loisir/Sport","83-Var","Camps la source"]
[null,"R.D Racing","Loisir/Sport","83-Var","Signes"]
[null,"Speedkart Karting","Loisir/Sport","83-Var","Hyeres les palmiers"]
[null,"Zig Zag","Loisir/Sport","83-Var","Le luc"]
[null,"Azur et Action","Loisir/Sport","83-Var","La crau"]
[null,"Circuit du Luc","Loisir/Sport","83-Var","Le luc"]
[null,"AGS Formule 1","Loisir/Sport","83-Var","Gonfaron"]
[null,"Topfit","Clubs de forme","06-Alpes Maritimes","Antibes juan les pins"]
[null,"Le Centre Croisette","Saunas / Hammams","06-Alpes Maritimes","Cannes"]
[null,"LA TARTANE ****","Hôtel","83-Var","Saint tropez"]
[null,"Le Levant ***","Hôtel/Restaurant","83-Var","Saint tropez"]
[null,"Villa Belrose","Hôtel/Restaurant","83-Var","Gassin"]
[null,"CRD Racing","Loisir/Sport","30-Gard","Beaucaire"]
[null,"Antibes Squash et Fitness Club","Clubs de forme","06-Alpes Maritimes","Antibes juan les pins"]
[null,"APHYSIA","Clubs de forme","06-Alpes Maritimes","Nice"]
[null,"CITOTEL DE LA NARTELLE ***","Hôtel","83-Var","Sainte maxime"]
[null,"DOMAINE DU CALIDIANUS ***","Hôtel","83-Var","Sainte maxime"]
[null,"BELLE AURORE ****","Hôtel/Restaurant","83-Var","Sainte maxime"]
[null,"HOSTELLERIE LA CROISETTE ***","Hôtel","83-Var","Sainte maxime"]
[null,"ESPACE WELLNESS","Clubs de forme","06-Alpes Maritimes","Nice"]
[null,"FITLANE","Clubs de forme","06-Alpes Maritimes","Mandelieu la napoule"]
[null,"FIT'N GYM","Clubs de forme","06-Alpes Maritimes","Villeneuve loubet"]
[null,"LADY FITNESS ANTIBES","Clubs de forme","06-Alpes Maritimes","Antibes juan les pins"]
[null,"LEADER FITNESS CLUB","Clubs de forme","06-Alpes Maritimes","Nice"]
[null,"PRODIGE","Clubs de forme","06-Alpes Maritimes","Villeneuve loubet"]
[null,"Amarante Golf Plaza ****","Hôtel","83-Var","Sainte maxime"]
[null,"Hôtellerie de la Poste","Hôtel/Restaurant","83-Var","Sainte maxime"]
[null,"Jas Neuf ***","Hôtel","83-Var","Sainte maxime"]
[null,"La Vierge Noire","Hôtel/Restaurant","83-Var","Sainte maxime"]
[null,"La Villa ***","Hôtel/Restaurant","83-Var","Sainte maxime"]
[null,"Le Mas des Oliviers ***","Hôtel/Restaurant","83-Var","Sainte maxime"]
[null,"LES JARDINS DE SAINTE MAXIME","Hôtel/Restaurant","83-Var","Sainte maxime"]
[null,"LES SANTOLINES ***","Hôtel","83-Var","Sainte maxime"]
[null,"MARTINENGO ****","Hôtel","83-Var","Sainte maxime"]
[null,"Le Domaine de Figuière ****","Camping/Location","83-Var","Sainte maxime"]
[null,"Le Relais de la Belle Epoque **","Hôtel/Restaurant","83-Var","Salernes"]
[null,"Bel Azur **","Hôtel","83-Var","Six fours les plages"]
[null,"GRIL CAMPANILE **","Hôtel/Restaurant","83-Var","Six fours les plages"]
[null,"ALBA-FLORA **","Hôtel","83-Var","Sollies pont"]
[null,"FORMULE 1","Hôtel","83-Var","Sollies pont"]
[null,"Balladins La Valette du Var **","Hôtel","83-Var","Toulon"]
[null,"Comfort Inn La Farlède **","Hôtel/Restaurant","83-Var","Toulon"]
[null,"ETAP HOTEL Toulon","Hôtel","83-Var","Toulon"]
[null,"Grand Hôtel de la Gare **","Hôtel","83-Var","Toulon"]
[null,"GRAND HOTEL DU DAUPHINE **","Hôtel","83-Var","Toulon"]
[null,"IBIS TOULON","Hôtel/Restaurant","83-Var","Toulon"]
[null,"LA CORNICHE ***","Hôtel","83-Var","Toulon"]
[null,"MERCURE TOULON ***","Hôtel","83-Var","Toulon"]
[null,"NEW HOTEL AMIRAUTE ***","Hôtel","83-Var","Toulon"]
[null,"LA TOUR BLANCHE ***","Hôtel/Restaurant","83-Var","Toulon"]
[null,"La Bastide de Tourtour","Hôtel/Restaurant","83-Var","Tourtour"]
[null,"Château de Trigance ***","Hôtel/Restaurant","83-Var","Trigance"]
[null,"Le Vieil Amandier **","Hôtel/Restaurant","83-Var","Trigance"]
[null,"Au Bien-Etre **","Hôtel/Restaurant","83-Var","Villecroze"]
[null,"FERME AUBERGE LA FENEIRE","Restaurant","07-Ardèche","Aizac"]
[null,"LA VIEILLE FONTAINE","Hôtel/Restaurant","07-Ardèche","Alba la romaine"]
[null,"LE BOUT DU MONDE","Restaurant","07-Ardèche","Alba la romaine"]
[null,"LA PETITE CHAUMIERE","Restaurant","07-Ardèche","Alba la romaine"]
[null,"AUBERGE DU DUZON","Hôtel/Restaurant","07-Ardèche","Alboussiere"]
[null,"FLUNCH RESTAURANT PHIMODINE","Restaurant","07-Ardèche","Alissas"]
[null,"LOU ESCLOS","Restaurant","07-Ardèche","Alissas"]
[null,"BAR RESTAURANT DES SIX CHEMINS","Restaurant","07-Ardèche","Annonay"]
[null,"BRASSERIE DU VIVARAIS","Restaurant","07-Ardèche","Annonay"]
[null,"CREPERIE LA BOLEE","Restaurant","07-Ardèche","Annonay"]
[null,"L’EPICURIEN","Restaurant","07-Ardèche","Annonay"]
[null,"D'AY ***","Hôtel/Restaurant","07-Ardèche","Annonay"]
[null,"LE LATINO PIZZERIA","Restaurant","07-Ardèche","Annonay"]
[null,"LE RABUZOU","Restaurant","07-Ardèche","Annonay"]
[null,"LES COPAINS D’ABORD","Restaurant","07-Ardèche","Annonay"]
[null,"CHINA TOWN","Restaurant","07-Ardèche","Annonay"]
[null,"RESTAURANT L’ESCABELLE","Restaurant","07-Ardèche","Annonay"]
[null,"La Halle","Restaurant","07-Ardèche","Annonay"]
[null,"LA TRUFFOLE","Restaurant","07-Ardèche","Annonay"]
[null,"LE CRISTAL","Restaurant","07-Ardèche","Annonay"]
[null,"LE PATIO","Restaurant","07-Ardèche","Annonay"]
[null,"LE RATELIER","Restaurant","07-Ardèche","Annonay"]
[null,"MARC ET CHRISTINE","Restaurant","07-Ardèche","Annonay"]
[null,"PIZZERIA LA TOUPINE","Restaurant","07-Ardèche","Annonay"]
[null,"VIA ROMA","Restaurant","07-Ardèche","Annonay"]
[null,"CHEZ L'AUVERGNAT","Restaurant","07-Ardèche","Antraigues sur volane"]
[null,"LA REMISE","Restaurant","07-Ardèche","Antraigues sur volane"]
[null,"LO PODELLO","Restaurant","07-Ardèche","Antraigues sur volane"]
[null,"LATRIA","Restaurant","07-Ardèche","Ardoix"]
[null,"AU BON COIN","Restaurant","07-Ardèche","Aubenas"]
[null,"AU BUREAU","Restaurant","07-Ardèche","Aubenas"]
[null,"BUFFALO GRILL","Restaurant","07-Ardèche","Aubenas"]
[null,"L'AUBERGE DES PINS","Hôtel/Restaurant","07-Ardèche","Aubenas"]
[null,"LES NEGOCIANTS","Hôtel/Restaurant","07-Ardèche","Aubenas"]
[null,"L’ANTRE D’EUX","Restaurant","07-Ardèche","Aubenas"]
[null,"L’ENTRACTE","Restaurant","07-Ardèche","Aubenas"]
[null,"LA CHURRASQUEIRA","Restaurant","07-Ardèche","Aubenas"]
[null,"LE CASTEL","Restaurant","07-Ardèche","Aubenas"]
[null,"Le Chat qui Pêche","Restaurant","07-Ardèche","Aubenas"]
[null,"Le Coyote","Restaurant","07-Ardèche","Aubenas"]
[null,"LE PALAIS DU COUSCOUS","Restaurant","07-Ardèche","Aubenas"]
[null,"NUIT DE SAIGON","Restaurant","07-Ardèche","Aubenas"]
[null,"PIZZERIA LE DUGUESCLIN","Restaurant","07-Ardèche","Aubenas"]
[null,"RESTAURANT CROZE","Restaurant","07-Ardèche","Aubenas"]
[null,"RESTAURANT DU CHATEAU","Restaurant","07-Ardèche","Aubenas"]
[null,"RESTAURANT LE FOURNIL","Restaurant","07-Ardèche","Aubenas"]
[null,"LE PICODON","Restaurant","07-Ardèche","Aubenas"]
[null,"AUBERGE DES 4 VENTS","Hôtel/Restaurant","07-Ardèche","Baix"]
[null,"Alès Racing System","Loisir/Sport","30-Gard","St martin de valgalgues"]
[null,"Sud Evasion Karting","Loisir/Sport","30-Gard","Beaucaire"]
[null,"Sud Karting","Loisir/Sport","30-Gard","Bouillargues"]
[null,"Tip-Top Diffusion","Loisir/Sport","30-Gard","St martin de valgalgues"]
[null,"Alpha Karting","Loisir/Sport","30-Gard","Ales"]
[null,"Circuit des Cabanelles","Loisir/Sport","30-Gard","Monteils"]
[null,"La Calmette Karting","Loisir/Sport","30-Gard","La calmette"]
[null,"LE BURON","Restaurant","07-Ardèche","Balazuc"]
[null,"RESTAURANT L’AMOURIER","Restaurant","07-Ardèche","Balazuc"]
[null,"AUBERGE DES AVELAS","Restaurant","07-Ardèche","Banne"]
[null,"LA GRIGNOTTE","Restaurant","07-Ardèche","Beauchastel"]
[null,"AUBERGE DE LA GARE","Hôtel/Restaurant","07-Ardèche","Beaulieu"]
[null,"CAFE DES ARTS","Bar/Café","07-Ardèche","Berrias et casteljau"]
[null,"GUINGUETTE DE CHAULET PLAGE","Restaurant","07-Ardèche","Berrias et casteljau"]
[null,"LE LAGON","Restaurant","07-Ardèche","Berrias et casteljau"]
[null,"LA CULOTTE COURTE","Restaurant","07-Ardèche","Berrias et casteljau"]
[null,"LA SOURCE","Restaurant","07-Ardèche","Berrias et casteljau"]
[null,"AUBERGE DU POUZAT","Restaurant","07-Ardèche","Bidon"]
[null,"AUBERGE LA FARIGOULE","Restaurant","07-Ardèche","Bidon"]
[null,"AUBERGE DE BOFFRES","Restaurant","07-Ardèche","Boffres"]
[null,"LE MONTAGNARD","Restaurant","07-Ardèche","Boree"]
[null,"AU BISTROT DE LA GARE","Bar/Café","07-Ardèche","Boucieu le roi"]
[null,"AUBERGE DE LA BELLE AURORE","Restaurant","07-Ardèche","Bourg saint andeol"]
[null,"BAR RESTAURANT L'ESTAMINET","Restaurant","07-Ardèche","Bourg saint andeol"]
[null,"BOU NEM’S","Restaurant","07-Ardèche","Bourg saint andeol"]
[null,"L’ESCAPADE","Restaurant","07-Ardèche","Bourg saint andeol"]
[null,"LE JARDIN DE TOURNE","Restaurant","07-Ardèche","Bourg saint andeol"]
[null,"LE YUCCA","Restaurant","07-Ardèche","Bourg saint andeol"]
[null,"Sirius Compétition","Loisir/Sport","30-Gard","Ledenon"]
[null,"Léa Sports","Loisir/Sport","30-Gard","Aigues mortes"]
[null,"Milhaud Karting location","Loisir/Sport","30-Gard","Milhaud"]
[null,"Amonzevo","Loisir/Sport","69-Rhone","Lyon 5eme"]
[null,"Beaujolais Quad Evasion","Loisir/Sport","69-Rhone","Belmont d'azergues"]
[null,"CHATAIGNES ET CHAMPIGNONS","Restaurant","07-Ardèche","Chalencon"]
[null,"CAFE RESTAURANT LE PONT","Restaurant","07-Ardèche","Antraigues sur volane"]
[null,"RESTAURANT DE LA TREILLE","Restaurant","07-Ardèche","Champagne"]
[null,"LORIOL HOTEL BOUTIQUE","Hôtel/Restaurant","07-Ardèche","Antraigues sur volane"]
[null,"AUBERGE DU DOLMEN","Chambres/Tables d'Hôtes","07-Ardèche","Chandolas"]
[null,"RESTAURANT DU MIDI","Restaurant","07-Ardèche","Charmes sur rhone"]
[null,"AUBERGE LA CLEDE","Restaurant","07-Ardèche","Chassiers"]
[null,"Kart'in Lyon","Loisir/Sport","69-Rhone","Venissieux"]
[null,"Domaine Les Ranchisses","Camping/Location","07-Ardèche","Largentiere"]
[null,"RESTAURANT DU MOLIERE","Restaurant","07-Ardèche","Chomerac"]
[null,"Karting Evasion","Loisir/Sport","69-Rhone","Bully"]
[null,"LRS Formula","Loisir/Sport","69-Rhone","Lyon 6eme"]
[null,"Activert Centre Tout Terrain","Loisir/Sport","69-Rhone","Saint laurent de chamousset"]
[null,"Actua Lyon Kart Métropole","Loisir/Sport","69-Rhone","Saint laurent de mure"]
[null,"FLP Kart Evolution","Loisir/Sport","69-Rhone","Saint priest"]
[null,"Foti Racing Service","Loisir/Sport","69-Rhone","Saint laurent de mure"]
[null,"Karting Loisirs","Loisir/Sport","69-Rhone","Corbas"]
[null,"MONO-LOC","Loisir/Sport","69-Rhone","Marennes"]
[null,"LA TAVERNE","Restaurant","07-Ardèche","Chomerac"]
[null,"AUBERGE DU DOUX","Camping/Location","07-Ardèche","Colombier le vieux"]
[null,"AUBERGE DE CRUSSOL","Restaurant","07-Ardèche","Cornas"]
[null,"ENJOLRAS","Hôtel/Restaurant","07-Ardèche","Antraigues sur volane"]
[null,"AUBERGE LES TROIS CHEMINS","Restaurant","07-Ardèche","Coux"]
[null,"AUBERGE LE POIVRE D'ANE","Restaurant","07-Ardèche","Coux"]

{"sheet":"Inter","index":2,"n_rows":23,"n_cols":5,"rows_kept":23,"cut":false,"hidden":false,"merged":[]}
[]
[]
[null,null,"Dep","Villes","Act"]
[null,null,{"$f":"_xlfn._xlws.SORT(_xlfn.UNIQUE(dep))","v":"06-Alpes Maritimes"},{"$f":"_xlfn._xlws.SORT(_xlfn.UNIQUE(_xlfn._xlws.FILTER(villes,dep=Liaisons!$G$4)))","v":{"$error":"#VALUE!"}},{"$f":"_xlfn._xlws.SORT(_xlfn.UNIQUE(_xlfn._xlws.FILTER(act,(dep=Liaisons!$G$4)*(villes=Liaisons!$G$7))))","v":{"$error":"#VALUE!"}}]
[null,null,"07-Ardèche"]
[null,null,"13-Bouches du Rhone"]
[null,null,"17-Charente Maritime"]
[null,null,"18-Cher"]
[null,null,"26-Drome"]
[null,null,"30-Gard"]
[null,null,"31-Haute Garonne"]
[null,null,"33-Gironde"]
[null,null,"38-Isère"]
[null,null,"42-Loire"]
[null,null,"55-Meuse"]
[null,null,"69-Rhone"]
[null,null,"71-Saone et Loire"]
[null,null,"73-Savoie"]
[null,null,"75-Paris"]
[null,null,"83-Var"]
[null,null,"84-Vaucluse"]
[null,null,"85-Vendée"]
[null,null,"87-Haute Vienne"]